{"text_format":"1","workbook":"xlsx","n_sheets":24,"sheets":["Cover Page","Contents","Facility Info","Operational Data","Operational Summary","Perf. Form 1","Energy Form 1","Permit Compliance","Improvements","Public Liasion","CO2 N2O","Residue Quality ","Water","Air (periodic)","Air (CEMS)","HCl","SO2","NOx","TOC","Particulates","CO 0.5 hourly","CO 95% 10 min","NH3","Template changes log"],"not_rendered":{"charts":8,"images":3,"macros":1,"external_links":0,"defined_names":24,"comments":0,"pivot_tables":0},"unopened":[],"bounds":{"document_bytes":16777216,"sheet_cells":100000,"rows_first":2000,"rows_last":500,"rows_between":2000,"halvings":0,"cell_chars":16384,"cell_head_chars":4096},"cells_cut":0,"cells_raw":0,"read":"whole","date_system":"1900"}

{"sheet":"Cover Page","index":0,"n_rows":53,"n_cols":14,"rows_kept":53,"cut":false,"hidden":false,"merged":[[48,2,48,3],[48,6,48,8],[52,2,52,3],[36,1,36,8],[40,2,40,8],[42,2,42,4],[44,2,44,4],[46,2,46,3],[46,6,46,8],[13,13,18,15],[34,1,34,8],[0,3,5,6],[7,1,23,8],[28,1,28,8],[30,1,30,8],[32,1,32,8]]}
[null,null,null,"Add company logo"]
[null,null,null,null,null,null,null,null,null,null,null,null,null,"Version 24.2a (for incinerators) - 27/11/24"]
[]
[null,null,null,null,null,null,null,null,null,null,null,null,null,"Note that there is another version of this template available for co-incinerators"]
[]
[]
[]
[null,"Add photo"]
[]
[]
[]
[]
[null,null,null,null,null,null,null,null,null,null,null,null,null,"Notes:"]
[null,null,null,null,null,null,null,null,null,null,null,null,null,"This template may require adjustments by individual operators to meet specific reporting requirements as defined in the site Permit(s)"]
[]
[]
[]
[]
[]
[]
[]
[]
[]
[]
[]
[]
[]
[]
[null,"Annual Performance Report 2024"]
[]
[null,"Permit EPR/WP3239SJ"]
[]
[null,"Tyseley Energy from Waste Plant"]
[]
[]
[]
[null,"Veolia ES Birmingham Limited"]
[]
[null,"Year:",2024]
[]
[null,"Address:","James Road, Tyseley, Birmingham, B11 2BA"]
[]
[null,"Tel: ","0203 9567 3740"]
[]
[null,"Email: ","christine.skaramaga@veolia.com"]
[]
[null,"Prepared by:","Christine Skaramaga",null,null,"Position:","Senior Environmental Engineer"]
[]
[null,"Approved by:","Paull Collier",null,null,"Position:","Plant Manager"]
[]
[null,"Version:",1]
[]
[null,"Issue Date:","2025-01-31"]

{"sheet":"Contents","index":1,"n_rows":45,"n_cols":11,"rows_kept":45,"cut":false,"hidden":false,"merged":[[44,0,47,9],[37,1,37,6],[38,1,38,6],[39,1,39,6],[40,1,40,6],[41,1,41,6],[42,1,42,6],[36,1,36,6],[22,1,22,6],[23,1,23,6],[24,1,24,6],[27,1,27,6],[28,1,28,6],[29,1,29,6],[30,1,30,6],[31,1,31,6],[32,1,32,6],[35,1,35,6],[21,1,21,6],[9,1,9,6],[10,1,10,6],[11,1,11,6],[13,1,13,6],[14,1,14,6],[15,1,15,6],[16,1,16,6],[17,1,17,6],[18,1,18,6],[19,1,19,6],[20,1,20,6],[12,1,12,6],[4,10,7,14],[8,1,8,6],[3,1,3,6],[4,1,4,6],[5,1,5,6],[6,1,6,6],[7,1,7,6]]}
[{"$f":"+'Cover Page'!$B$29","v":"Annual Performance Report 2024"},null,null,null,{"$f":"+'Cover Page'!$B$33","v":"Tyseley Energy from Waste Plant"}]
[]
["Contents",null,null,null,null,null,null,null,null,null,"Notes:"]
["Section","Subject",null,null,null,null,null,"Page ",null,null,"Section references and Page nos. to be inserted"]
[null,"Facility Information",null,null,null,null,null,3,null,null,"Sections and Subjects may require adjustment by individual operators to meet specific reporting requirements as defined in the sites Permit(s)"]
[null,"Operational Data",null,null,null,null,null,4]
[null,"Operational Summary",null,null,null,null,null,6]
[null,"Performance Form 1",null,null,null,null,null,7]
[null,"Energy Form 1",null,null,null,null,null,8]
[null,"Permit Compliance",null,null,null,null,null,9]
[null,"Improvements",null,null,null,null,null,10]
[null,"Public Liaison",null,null,null,null,null,11]
[null,"Carbon dioxide and nitrous oxide emissions",null,null,null,null,null,12]
[null,"Residue Quality ",null,null,null,null,null,14]
[null,"Emissions to Water",null,null,null,null,null,15]
[null,"Emissions to Air (periodically monitored)",null,null,null,null,null,16]
[null,"Emissions to Air (continuously monitored)",null,null,null,null,null,20]
[null,"Hydrogen Chloride emissions",null,null,null,null,null,22]
[null,"Sulphur Dioxide emissions",null,null,null,null,null,23]
[null,"Oxides of Nitrogen emissions",null,null,null,null,null,24]
[null,"Total Organic Carbon emissions",null,null,null,null,null,25]
[null,"Particulate Matter emissions",null,null,null,null,null,26]
[null,"Carbon Monoxide emissions",null,null,null,null,null,28]
[null,"Ammonia emissions",null,null,null,null,null,29]
[]
[]
["Version Control"]
["Section","Information",null,null,null,null,null,"Date"]
[]
[]
[]
[]
[]
[]
["Distribution"]
["Copy","Name, Role",null,null,null,null,null,"No."]
[1,"Sarah Dennis, EA Installations Technical Leader",null,null,null,null,null,1]
[]
[]
[]
[]
[]
[]
[]
["This report is required under the Industrial Emissions Directive’s Article 55(2) requirements on reporting and public information on waste incineration plants and co-incineration plants, which require the operator to produce an annual report on the functioning and monitoring of the plant and make it available to the public. "]

{"sheet":"Facility Info","index":2,"n_rows":22,"n_cols":11,"rows_kept":22,"cut":false,"hidden":false,"merged":[[4,0,17,8],[21,0,53,8],[4,10,13,13],[21,10,30,13]]}
[{"$f":"+'Cover Page'!$B$29","v":"Annual Performance Report 2024"},null,null,null,{"$f":"+'Cover Page'!$B$33","v":"Tyseley Energy from Waste Plant"}]
[]
["Plant Description and Design",null,null,null,null,null,null,null,null,null,"Notes:"]
[]
["The main purpose of the activity carried out at this facility is to incinerate, primarily, Municipal Solid Waste (MSW) as defined by EWC 20 03 01, recovering energy in the form of steam and electricity generating 27 MW for export to the National Grid. \n\nThe permit covers the site and the entire incineration process which includes all incineration lines, waste reception and storage, waste-fuel and air supply systems, boilers, facilities for the treatment of exhaust gases, on-site facilities for handling and storage of residues and operations, recording and monitoring conditions.\n\n",null,null,null,null,null,null,null,null,null,"Include summary of plant design, design capacity, no. of combustion lines, electrical and heat capacity and any other general information that describes the facility, its location and purpose "]
[]
[]
[]
[]
[]
[]
[]
[]
[]
[]
[]
[]
[]
[]
["Summary of Operational Processes and Procedures"]
[]
["This facility consists of two incineration lines, each capable of processing approximately 23.5 tonnes per hour, which takes approximately 350,000 tonnes of Birmingham’s waste each year but this, is dependent on two factors: actual operating hours and calorific value of the waste being burnt.\n\nThe third incineration line processes clinical waste and other designated hazardous wastes (CWI) at a nominal rate of 600kg/hour.\nAll emissions to air from the two 80m high chimneys are controlled to meet the emission limits included in the Environmental Permit. The flue gases released into the atmosphere are continuously monitored for Particulate Matter (total), TOC, Hydrogen Chloride, Oxides of Nitrogen, Carbon Monoxide, Ammonia,  Sulphur Dioxide, Carbon Dioxide, Nitrous Oxide and flue gas flow.         \nBi-annual check monitoring of this equipment is carried out by approved contractors using indepent extractive sampling methods, at which time emissions of Heavy Metals, Dioxins and other substances are also monitored.\nThe Continious Emissions Monitoring equipment (CEMs) was in service during 2023 for 100% of the plant operating time. This equipment is stringently monitored with routine calibration checks and is standardised to BS EN14181:2004. ",null,null,null,null,null,null,null,null,null,"Include summary of key processes and procedures such as (but not limited to); waste reception, control rooms, grate, bed and boiler, energy & heat  generation, cooling systems, residue management, emission controls, health and safety systems, maintenance"]

{"sheet":"Operational Data","index":3,"n_rows":65,"n_cols":10,"rows_kept":65,"cut":false,"hidden":false,"merged":[[5,9,7,9],[52,0,56,0],[33,1,38,1],[3,1,3,2],[7,1,19,1],[23,1,26,1],[28,1,29,1],[9,9,20,9],[21,9,25,9]]}
[{"$f":"+'Cover Page'!$B$29","v":"Annual Performance Report 2024"},null,null,null,{"$f":"+'Cover Page'!$B$33","v":"Tyseley Energy from Waste Plant"}]
[]
["Operational Data"]
["Plant Size",440500,null,"tonnes pa",null,"MWth",30,"MWe",null,"Notes:"]
["No. of combustion lines",2,null,"No. of Turbines:",null,1,null,null,null,"* - RDF to include SRF "]
[null,null,null,null,null,null,null,null,null,"** - Combusted tonnage = tonnes delivered in period + (tonnes in bunker at start of period – tonnes in bunker at end of period), or equivalent calculation depending on plant type"]
["Waste types received","Unit","Q1","Q2","Q3","Q4","Year Total","%"]
["Household / Local Authority","tonnes",96300,90332,94857,98026,{"$f":"SUM(C8:F8)","v":379515},{"$f":"IF(G8>0,G8/$G$18,\"-\")","v":0.98334978662541683}]
["Commercial & Industrial ",null,69,96,42,50,{"$f":"SUM(C9:F9)","v":257},6.6590489219854848E-4,null,"*** - CHP plants only"]
["Hazardous ",null,710,688,672,715,2785,7.2161288901671497E-3,null,"**** Availability Definition: 'the availability of a line is to be calculated by the number of hours the line reported Continuously Monitored emission levels to the Regulator through the calendar year divided by the total number of hours in that year. \n\nThe overall plant availability is calculated as the Mean of all lines in the plant. For clarity this includes periods of abnormal operation.'  \n\nRationale: The primary function of an Energy from Waste facility is the disposal of waste. It follows therefore that the availability of a plant is determined by the period of time a facility spends undertaking this activity."]
["Clinical",null,702,687,757,831,2977,7.7136142571014744E-3]
["Waste wood (biomass) ",null,null,null,null,null,0,"-"]
["Refuse Derived Fuel * - H'hold/LA",null,43,null,154,210,{"$f":"SUM(C13:F13)","v":407},1.0545653351159891E-3]
["Refuse Derived Fuel *  - C&I",null,null,null,null,null,0,"-"]
["Other [Please specify]",null,null,null,null,null,0,"-"]
["Other [Please specify]",null,null,null,null,null,0,"-"]
["Other [Please specify]",null,null,null,null,null,0,"-"]
["Total waste received",null,{"$f":"SUM(C8:C17)","v":97824},{"$f":"SUM(D8:D17)","v":91803},{"$f":"SUM(E8:E17)","v":96482},{"$f":"SUM(F8:F17)","v":99832},385941]
["Rejected Waste ",null,null,null,null,null,{"$f":"SUM(C19:F19)","v":0},{"$f":"IF(G19>0,G19/$G$18,\"-\")","v":"-"}]
["Unprocessed waste transferred out",null,null,null,null,null,{"$f":"SUM(C20:F20)","v":0},{"$f":"IF(G20>0,G20/$G$18,\"-\")","v":"-"}]
["Total waste combusted **",null,98603,88176,94287,100881,{"$f":"SUM(C21:F21)","v":381947}]
[null,null,null,null,null,null,null,null,null,"Password for protected cells\nA password has been set to prevent accidental  editing of cells with formulae. \nIf you still need to make an edit for some reason then the password = 1234"]
["Energy Usage / Export","Unit","Q1","Q2","Q3","Q4","Year Total","KWh/te"]
["Power Generated","MWh",52991,47121,54853,56042,{"$f":"SUM(C24:F24)","v":211007},{"$f":"IF(G24>0,G24*1000/$G$21,\"-\")","v":552.45099450970952}]
["Power Exported",null,44651,41494,47972,49184,{"$f":"SUM(C25:F25)","v":183301},{"$f":"IF(G25>0,G25*1000/$G$21,\"-\")","v":479.91213440608254}]
["Power Used on site",null,{"$f":"(C24-C25)+C27","v":8340},{"$f":"(D24-D25)+D27","v":5627},6881,6957,{"$f":"SUM(C26:F26)","v":27805},{"$f":"IF(G26>0,G26*1000/$G$21,\"-\")","v":72.798058369354905}]
["Power Imported",null,0,0,0,99,99,{"$f":"IF(G27>0,G27*1000/$G$21,\"-\")","v":0.2591982657279675}]
["Parasitic Load","%",{"$f":"IF(C24>0,1-C25/(C24+C27),\"-\")","v":0.15738521635749469},{"$f":"IF(D24>0,1-D25/(D24+D27),\"-\")","v":0.11941597164746076},{"$f":"IF(E24>0,1-E25/(E24+E27),\"-\")","v":0.12544436949665472},{"$f":"IF(F24>0,1-F25/(F24+F27),\"-\")","v":0.12392012967350063},{"$f":"IF(G24>0,1-G25/(G24+G27),\"-\")","v":0.13171108353149608}]
["Thermal Energy Produced ***","MWh",null,null,null,null,{"$f":"SUM(C29:F29)","v":0},{"$f":"IF(G29>0,G29*1000/$G$21,\"-\")","v":"-"}]
["Thermal Energy Exported ***",null,null,null,null,null,0,{"$f":"IF(G30>0,G30*1000/$G$21,\"-\")","v":"-"}]
["R1 value (if applicable)","R1",null,null,null,null,0.63]
[]
["Waste Disposal & Recovery","Unit","Q1","Q2","Q3","Q4","Year Total","% inputs"]
["APC Residues - produced","tonnes",2491,1967,2168,3088,{"$f":"SUM(C34:F34)","v":9714},{"$f":"IF(G34>0,G34/$G$21,\"-\")","v":2.5432848012944206E-2}]
["IBA - produced",null,20369,18837,20963,27051,87220,{"$f":"IF(G35>0,G35/$G$21,\"-\")","v":0.22835629027063964}]
["Metals recycling",null,1193,806,766,1100,{"$f":"SUM(C36:F36)","v":3865},1.0119205020591862E-2]
["Interceptor waste",null,51,61,0,0,{"$f":"SUM(C37:F37)","v":112},2.9323440163163997E-4]
["Wooden packaging",null,30,19,23,25,97,2.5396193712740251E-4]
["Other",null,0,0,0,0,0,"-"]
[]
["Raw Material Usage","Unit","Q1","Q2","Q3","Q4","Year Total","kg or Ltr /te"]
["Mains Water","m3",49517,40100,44172,42764,{"$f":"SUM(C42:F42)","v":176553},{"$f":"IF(G42>0,G42/$G$21,\"-\")","v":0.46224476170777623}]
["Other Water","ltrs",null,null,null,null,0,{"$f":"IF(G43>0,G43/$G$21,\"-\")","v":"-"}]
["Ammonia","kgs",152300,129000,197900,156700,635900,1.6648906785496418]
["Urea","kgs",null,null,null,null,{"$f":"SUM(C45:F45)","v":0},"-"]
["Activated Carbon","kgs",64700,43300,55000,57900,220900,0.57835249393240429]
["Lime / hydrated lime","kgs",667000,599000,716000,606000,2588000,6.7758092091311095]
["Fuel oil","ltrs",368313,439674,382784,391350,1582121,4.1422527209272495]
["Gas","cuf",null,null,null,null,0]
["Other",null,null,null,null,null,0]
[]
["Summary ","Line/Unit","Q1","Q2","Q3","Q4","Year Total",null,"Hrs in year "]
["Availability of waste combustion by line, hrs ****",1,1995,1952,2080,2120,{"$f":"SUM(C53:F53)","v":8147},{"$f":"+G53/$I$53","v":0.93002283105022832},8760,"Change this figure to 8784 in a leap year"]
[null,2,2164,1749,2094,2139,8146,{"$f":"+G54/$I$53","v":0.92990867579908676}]
[null,3,null,null,null,null,0,0]
[null,4,null,null,null,null,0,0]
[null,5,null,null,null,null,{"$f":"SUM(C57:F57)","v":0},0]
["Overall Availability, mean avg. of all lines, hrs",null,{"$f":"AVERAGE(C53:C54)","v":2079.5},{"$f":"AVERAGE(D53:D54)","v":1850.5},2087,2129.5,{"$f":"AVERAGE(G53:G54)","v":8146.5},0.92996575342465748]
["Hours of turbine operations, hrs",1,2184,1968,2208,2159,8519,0.97248858447488584]
["Hours of turbine operations, hrs",2,null,null,null,null,0,0]
["Hours of heat / steam export",null,null,null,null,null,0,{"$f":"IF(B61>0,G60/I53,\"n/a\")","v":"n/a"}]
["Net Calorific Value of waste","MJ/kg"]
["Abnormal Events","qty.",null,null,null,null,0,{"$f":"IF(G63>0,\"yes\",\"no\")","v":"no"}]
["Abnormal operation","hours",null,null,null,null,0,{"$f":"+(G64)/I53","v":0}]
["Permit Breaches","qty.",null,null,null,null,0,{"$f":"IF(G65>0,\"yes\",\"no\")","v":"no"}]

{"sheet":"Operational Summary","index":4,"n_rows":65,"n_cols":11,"rows_kept":65,"cut":false,"hidden":false,"merged":[[69,1,69,8],[54,10,64,13],[63,1,63,8],[59,1,59,8],[55,1,55,8],[56,1,56,8],[57,1,57,8],[58,1,58,8],[68,1,68,8],[64,1,64,8],[65,1,65,8],[66,1,66,8],[67,1,67,8],[60,1,60,8],[61,1,61,8],[62,1,62,8],[4,0,26,8],[30,0,51,8],[4,10,13,13],[30,10,39,13],[54,1,54,8],[53,1,53,8]]}
[{"$f":"+'Cover Page'!$B$29","v":"Annual Performance Report 2024"},null,null,null,{"$f":"+'Cover Page'!$B$33","v":"Tyseley Energy from Waste Plant"}]
[]
["Summary of Plant Operations and Maintenance during the reporting year",null,null,null,null,null,null,null,null,null,"Notes:"]
[]
["Annual outage and common unit outage\nSummary of works carried out at both units 1&2:\nBoiler & furnace tubes replacement\nFurnace refractory repairs\nGrate overhaul, grate bars removed and refitted & new grate bars fitted where necessary\nID fan service and FD fan drives\nBaghouse inspection & overhaul\nRemoval/overhaul and pressure testing of air preheater elements\nStack inspection\nCalibrations of site instrumentation\nReactor internal cleaning, thickness checks on the roof structure & cylinder, repairs to internal roof\nNDT inspections\nFeeders overhaul and allignment checked\nCommon outage:\nNew CEM UPS installation & commissioning\n3,3kV Switchboard buzz coupler breaker installed, all trip settings installed, door locking mechanisms adjusted/repaired\n11kV & 415kV new trip setting implemented\nRefuse crane anti collisions sytem installation, SPG main control panels moved to common services panel\nDCS service/inspection and replacement of obsolete parts of the hardware\nGenerator LEAP test carried out\nNew gearset with new bearings installed in the gearbox\nContact between gear shafts and bearings checked\nOil pump coupling replaced with new\nAllignments checked and validated\n",null,null,null,null,null,null,null,null,null,"Include summary of key operational and/or maintenance activity undertaken in the year, such as any major component upgrades and/or replacements "]
[]
[]
[]
[]
[]
[]
[]
[]
[]
[]
[]
[]
[]
[]
[]
[]
[]
[]
[]
[]
[]
[]
[]
["Summary of Residue Handling for the reporting year"]
[]
["Ash residues (known as Incinerator Bottom Ash or IBA) are currently sent to Castle Bromwich for reprocessing. This material is reprocessed by extracting further ferrous and non-ferrous metals and by crushing, trommelling and screening to produce a graded, quality material that is useable as substitute aggregate in such applications as road building.\nFerrous metal removed from the IBA is sent to a steel manufacturer for recycling.\nFiner particulate matter, know as Air Pollution Control (APC) residues, removed from the flue gases by fabric filter is collected and sent to the Minosus Hazardous Waste underground storage facility in Cheshire or to Empire Works, a Veolia facility, for treatment.",null,null,null,null,null,null,null,null,null,"Include in here a summary of residue handling regimes and destinations "]
[]
[]
[]
[]
[]
[]
[]
[]
[]
[]
[]
[]
[]
[]
[]
[]
[]
[]
[]
[]
[]
[]
[{"$f":"+'Cover Page'!C39","v":2024},"Plant shut-downs"]
["Date","Reason for shut-down",null,null,null,null,null,null,null,null,"Provide a very brief reason for plant shut-down e.g. \"Shut-down prior to major outage\"; \"Emergency shut-down due to boiler tube leak\"\n\nThere is no need to include periods of hot-standby here (e.g. to clear feed chute hopper blockages).\n\nFor clinical waste incinerators which require regular shut-downs for boiler cleaning, there is no need to record these here. "]
["2024-03-24","A1 Shut down due to annual outage"]
["2024-04-01","A2 Shut down due to annual outage"]
["2024-05-29","A1 Shut down due to grate repairs"]
["2024-06-30","A2 Shut down due to grate repairs"]
["2024-07-03","A2 Shut down due to grate repairs"]
["2024-07-08","A1 Shut down due to grate repairs"]
["2024-09-08","A2 Shut down due to grate repairs"]
["2024-09-18","A1 Shut down due to boiler tube leak"]
["2024-11-06","A1 & A2 Shut down due to turbine work"]
["2024-11-14","A1 Shut down due to boiler tube leak"]

{"sheet":"Perf. Form 1","index":5,"n_rows":54,"n_cols":10,"rows_kept":54,"cut":false,"hidden":false,"merged":[[47,0,47,1],[49,0,49,9],[50,0,51,9],[38,0,38,9],[39,0,40,9],[43,0,43,1],[43,2,43,9],[45,0,45,1],[46,0,46,1],[36,0,36,3],[36,4,36,5],[36,7,36,8],[37,0,37,3],[37,4,37,5],[37,7,37,8],[34,0,34,3],[34,4,34,5],[34,7,34,8],[35,0,35,3],[35,4,35,5],[35,7,35,8],[31,0,31,3],[31,7,31,8],[32,0,32,3],[32,4,32,5],[32,7,32,8],[33,0,33,3],[33,4,33,5],[33,7,33,8],[23,0,23,3],[23,4,23,5],[23,6,23,7],[23,8,23,9],[25,0,25,9],[26,0,28,9],[21,0,21,1],[21,2,21,3],[21,4,21,5],[21,6,21,7],[21,8,21,9],[22,0,22,3],[22,4,22,5],[22,6,22,7],[22,8,22,9],[19,0,19,1],[19,2,19,3],[19,4,19,5],[19,6,19,7],[19,8,19,9],[20,0,20,1],[20,2,20,3],[20,4,20,5],[20,6,20,7],[20,8,20,9],[17,0,17,1],[17,2,17,3],[17,4,17,5],[17,6,17,7],[17,8,17,9],[18,0,18,1],[18,2,18,3],[18,4,18,5],[18,6,18,7],[18,8,18,9],[15,0,15,1],[15,2,15,3],[15,4,15,5],[15,6,15,7],[15,8,15,9],[16,0,16,9],[13,0,13,1],[13,2,13,3],[13,4,13,5],[13,6,13,7],[13,8,13,9],[14,0,14,3],[14,4,14,5],[14,6,14,7],[14,8,14,9],[11,0,11,1],[11,2,11,3],[11,4,11,5],[11,6,11,7],[11,8,11,9],[12,0,12,1],[12,2,12,3],[12,4,12,5],[12,6,12,7],[12,8,12,9],[9,0,9,9],[10,0,10,1],[10,2,10,3],[10,4,10,5],[10,6,10,7],[10,8,10,9],[2,0,2,4],[2,6,2,8],[3,1,3,4],[5,3,5,4],[5,6,5,7],[8,0,8,1],[8,2,8,3],[8,4,8,5],[8,6,8,7],[8,8,8,9]]}
[{"$f":"+'Cover Page'!C39","v":2024}," Annual Reporting Performance Form 1"]
[]
[{"$f":"+'Cover Page'!B31","v":"Permit EPR/WP3239SJ"},null,null,null,null,"Operator: ",{"$f":"+'Cover Page'!B37","v":"Veolia ES Birmingham Limited"}]
["Facility:",{"$f":"+'Cover Page'!B33:I33","v":"Tyseley Energy from Waste Plant"},null,null,null,"Form:","Performance 1"]
[]
["Reporting  Period from: ",null,null,"2024-01-01",null,"to:","2024-12-31"]
[]
[{"$f":"+A1","v":2024},"Annual Reporting of Waste Disposal and Recovery"]
["Waste Description",null,"Disposal Route(s)",null,"Disposal Tonnes",null,"Recovery Tonnes",null,"% / tonne of waste incinerated"]
["1) Hazardous Wastes"]
["APC Residues",null,"D09/D12",null,{"$f":"'Operational Data'!G34","v":9714},null,null,null,{"$f":"IF((E11+G11)>0,(E11+G11)/'Operational Data'!$G$21, \"-\")","v":2.5432848012944206E-2}]
["IBA",null,null,null,null,null,null,null,{"$f":"IF((E12+G12)>0,(E12+G12)/'Operational Data'!$G$21, \"-\")","v":"-"}]
["Interceptor waste",null,"D09/D12",null,{"$f":"'Operational Data'!G37","v":112},null,null,null,{"$f":"IF((E13+G13)>0,(E13+G13)/'Operational Data'!$G$21, \"-\")","v":2.9323440163163997E-4}]
[null,null,null,null,null,null,null,null,{"$f":"IF((E14+G14)>0,(E14+G14)/'Operational Data'!$G$21, \"-\")","v":"-"}]
["Total Hazardous Waste",null,null,null,{"$f":"SUM(E11:F14)","v":9826},null,{"$f":"SUM(G11:H14)","v":0},null,{"$f":"IF((E15+G15)>0,(E15+G15)/'Operational Data'!$G$21, \"-\")","v":2.5726082414575843E-2}]
[]
["2) Non-Hazardous Wastes"]
["IBA",null,"R03",null,null,null,{"$f":"'Operational Data'!G35","v":87220},null,{"$f":"IF((E18+G18)>0,(E18+G18)/'Operational Data'!$G$21, \"-\")","v":0.22835629027063964}]
["Ferrous Metal",null,"R04",null,null,null,{"$f":"'Operational Data'!G36","v":3865},null,{"$f":"IF((E19+G19)>0,(E19+G19)/'Operational Data'!$G$21, \"-\")","v":1.0119205020591862E-2}]
["Process Water",null,null,null,{"$f":"'Operational Data'!G42-89269","v":87284},null,89269,null,{"$f":"IF((E20+G20)>0,(E20+G20)/'Operational Data'!$G$21, \"-\")","v":0.46224476170777623}]
["Wooden packaging",null,"R03",null,null,null,{"$f":"'Operational Data'!G38","v":97},null,{"$f":"IF((E21+G21)>0,(E21+G21)/'Operational Data'!$G$21, \"-\")","v":2.5396193712740251E-4}]
[null,null,null,null,null,null,null,null,{"$f":"IF((E22+G22)>0,(E22+G22)/'Operational Data'!$G$21, \"-\")","v":"-"}]
["Total Non-Hazardous Waste",null,null,null,{"$f":"SUM(E18:F22)","v":87284},null,{"$f":"SUM(G18:H22)","v":180451},null,{"$f":"IF((E23+G23)>0,(E23+G23)/'Operational Data'!$G$21, \"-\")","v":0.7009742189361351}]
["TOTAL WASTE",null,null,null,{"$f":"+E23+E15","v":97110},null,{"$f":"+G23+G15","v":180451},null,{"$f":"IF((E24+G24)>0,(E24+G24)/'Operational Data'!$G$21, \"-\")","v":0.72670030135071095}]
[]
["Operator’s comments :"]
[]
[]
[]
[]
[{"$f":"+A1","v":2024},"Annual Reporting of Water and Other Raw Material Usage"]
["Raw Material",null,null,null,"Usage",null,"Unit","Specific Usage",null,"Unit"]
["Mains Water",null,null,null,{"$f":"+'Operational Data'!G42/1000","v":176.553},null,"m3",{"$f":"IF(E33>0,E33/'Operational Data'!$G$21,\"-\")","v":4.6224476170777623E-4},null,"m3/te"]
["Total Water",null,null,null,{"$f":"+'Operational Data'!G43+'Operational Data'!G42/1000","v":176.553},null,"m3",{"$f":"IF(E34>0,E34/'Operational Data'!$G$21,\"-\")","v":4.6224476170777623E-4},null,"m3/te"]
["Urea / Ammonia",null,null,null,{"$f":"+'Operational Data'!G44","v":635900},null,"kg",{"$f":"IF(E35>0,E35/'Operational Data'!$G$21,\"-\")","v":1.6648906785496418},null,"kg/te"]
["Activated Carbon",null,null,null,{"$f":"+'Operational Data'!G46","v":220900},null,"kg",{"$f":"IF(E36>0,E36/'Operational Data'!$G$21,\"-\")","v":0.57835249393240429},null,"kg/te"]
["Lime / hydrated lime / Sodium Bicarb.",null,null,null,{"$f":"+'Operational Data'!G47","v":2588000},null,"kg",{"$f":"IF(E37>0,E37/'Operational Data'!$G$21,\"-\")","v":6.7758092091311095},null,"kg/te"]
[]
["Operator’s comments :"]
[]
[]
[]
[{"$f":"+A31","v":2024},"Annual Reporting of other performance indicators "]
["Parameter",null,"Results by Line"]
[null,null,"A1","A2","A3","A4","A5",null,"Turbine 1","Turbine 2"]
["Operating hours for the year, hours",null,{"$f":"'Operational Data'!G53","v":8147},{"$f":"'Operational Data'!G54","v":8146},null,null,null,null,{"$f":"'Operational Data'!G59","v":8519}]
["Number of periods of abnormal operation, qty."]
["Cumulative hours of abnormal operation for this year, hours"]
[]
["Operator’s comments :"]
[]
[]
[]
["Signed: ","Paul Collier",null,null,null,null,"Date:","2025-01-31"]

{"sheet":"Energy Form 1","index":6,"n_rows":29,"n_cols":8,"rows_kept":29,"cut":false,"hidden":false,"merged":[[15,0,15,2],[15,3,15,4],[15,6,15,8],[17,0,17,8],[18,0,24,8],[13,0,13,2],[13,3,13,4],[13,6,13,8],[14,0,14,2],[14,3,14,4],[14,6,14,8],[11,0,11,2],[11,3,11,4],[11,6,11,8],[12,0,12,2],[12,3,12,4],[12,6,12,8],[9,0,9,2],[9,3,9,4],[9,6,9,8],[10,0,10,2],[10,3,10,4],[10,6,10,8],[2,6,2,8],[4,1,4,4],[6,3,6,4],[6,6,6,7],[8,0,8,2],[8,3,8,4],[8,6,8,8]]}
[{"$f":"+'Cover Page'!C39","v":2024}," Annual Reporting of Energy Usage/Export"]
[]
[{"$f":"+'Cover Page'!B31","v":"Permit EPR/WP3239SJ"},null,null,null,null,"Operator: ",{"$f":"+'Cover Page'!B37","v":"Veolia ES Birmingham Limited"}]
[]
["Facility:",{"$f":"+'Cover Page'!B33:I33","v":"Tyseley Energy from Waste Plant"},null,null,null,"Form:","Energy 1"]
[]
["Reporting  Period from: ",null,null,{"$f":"+'Perf. Form 1'!D6:E6","v":"2024-01-01"},null,"to:",{"$f":"+'Perf. Form 1'!G6:H6","v":"2024-12-31"}]
[]
["Energy Source",null,null,"Energy Usage",null,"Unit","Specific Usage (KWh/tonne incinerated"]
["Electricity Produced",null,null,{"$f":"+'Operational Data'!G24","v":211007},null,"MWh",{"$f":"+'Operational Data'!H24","v":552.45099450970952}]
["Electricity Imported   ",null,null,{"$f":"+'Operational Data'!G27","v":99},null,"MWh",{"$f":"+'Operational Data'!H27","v":0.2591982657279675}]
["Electricity Exported",null,null,{"$f":"+'Operational Data'!G25","v":183301},null,"MWh",{"$f":"+'Operational Data'!H25","v":479.91213440608254}]
["Gas Oil",null,null,{"$f":"'Operational Data'!G48","v":1582121},null,"ltrs",{"$f":"'Operational Data'!H48","v":4.1422527209272495}]
["Steam/hot water exported",null,null,{"$f":"+'Operational Data'!G30","v":0},null,"GWh",{"$f":"+'Operational Data'!H30","v":"-"}]
[]
[]
[]
["Operator’s comments :"]
[]
[]
[]
[]
[]
[]
[]
[]
[]
[]
["Signed: ","Paul Collier",null,null,null,null,"Date:","2025-01-31"]

{"sheet":"Permit Compliance","index":7,"n_rows":30,"n_cols":12,"rows_kept":30,"cut":false,"hidden":false,"merged":[[19,7,19,8],[19,1,19,2],[19,3,19,5],[8,11,20,11],[28,0,28,10],[18,0,18,10],[14,0,14,1],[14,2,14,4],[14,5,14,8],[15,0,15,1],[16,2,16,4],[16,5,16,8],[15,2,15,4],[15,5,15,8],[16,0,16,1],[21,6,25,6],[21,3,25,5],[21,0,25,0],[21,1,25,2],[26,0,26,8],[29,1,29,3],[29,4,29,6],[29,7,29,9],[30,1,30,3],[30,4,30,6],[30,7,30,9],[34,1,34,3],[34,4,34,6],[34,7,34,9],[31,1,31,3],[31,4,31,6],[31,7,31,9],[32,1,32,3],[32,4,32,6],[32,7,32,9],[33,1,33,3],[33,4,33,6],[33,7,33,9],[7,0,7,1],[7,2,7,8],[8,0,8,1],[8,2,8,4],[8,5,8,8],[35,4,35,8],[9,0,9,1],[9,2,9,4],[9,5,9,8],[10,0,10,1],[10,2,10,4],[10,5,10,8],[11,0,11,1],[11,2,11,4],[11,5,11,8],[12,0,12,1],[12,2,12,4],[12,5,12,8],[13,0,13,1],[13,2,13,4],[13,5,13,8]]}
[{"$f":"+'Cover Page'!$B$29","v":"Annual Performance Report 2024"},null,null,null,{"$f":"+'Cover Page'!$B$33","v":"Tyseley Energy from Waste Plant"}]
[]
["Summary of Permit Compliance"]
[]
["Compliance with permit limits for continuously monitored pollutants"]
[]
["The plant met its emission limits as shown in the table below:"]
["Substance",null,"Percentage time compliant during operationNote 1",null,null,null,null,null,null,null,null,"Notes:"]
[null,null,"Half-hourly limit",null,null,"Daily limit",null,null,null,null,null,"Note 1: Please report to 2 decimal places, i.e. xx.xx%\n\nNote 2: Please enter into this table any permit non-compliances that the EA has given a CCS score for. Please also enter any other non-compliances which you have notified to the EA (e.g. ELV exceedances) but which have not yet been assessed by the EA. There is no need to enter any notifications which were subsequently assessed by the EA not to be permit breaches.  \n\nNote 3: Please enter information here (rather than just referencing the notifications that were sent to the EA) including where relevant the incineration line reference, pollutant and value of the measured result for any ELV exceedances.   \n\n"]
["Particulates",null,1,null,null,1]
["Oxides of nitrogen",null,1,null,null,1]
["Sulphur dioxide",null,1,null,null,1]
["Carbon monoxide",null,"xx.xx % or \n100.00% 95% of 10-min averages",null,null,1]
["Total organic carbon",null,0.99,null,null,1]
["Hydrogen chloride",null,1,null,null,1]
["Ammonia",null,"xx.xx %",null,null,1]
[null,null,"xx.xx %",null,null,"xx.xx %"]
[]
["Summary of non-compliances under the permit Note 2"]
["Date","Summary of non-compliance Note 3",null,"Reason ",null,null,"Measures taken to prevent reoccurrence","CCS score if applicable*"]
[null,null,null,null,null,null,null,"Impact","Root cause"]
["2024-08-29","TOC half hourly spike on Line 1 at 20,33mg/m3 against the half hourly limit of 20mg/m3",null,"Process spike",null,null,"Minimal adjustments performed on combustion primary & secondary air in the boiler furnace",4,"n/a"]
[]
[]
[]
[]
["*If the Environment Agency (EA) has given a Compliance Classification Scheme (CCS) score due to a permit non-compliance it should be entered here (CCS4 = No impact; CCS3 = Minor impact; CCS2 = Significant impact; CCS1 = Major impact). If the EA has not yet assessed a non-compliance which you have notified to them, these columns should be left blank. Enter N/A if no score was given for the root cause.  "]
[]
["Summary of any complaints received and actions to taken to resolve them."]
["Date","Summary of complaint [including Line/Reference]",null,null,"Reason (including whether substantiated by the operator or the EA)",null,null,"Measures taken to prevent reoccurrence"]

{"sheet":"Improvements","index":8,"n_rows":39,"n_cols":5,"rows_kept":39,"cut":false,"hidden":false,"merged":[[37,0,37,8],[38,0,47,8],[4,0,4,8],[5,0,13,8],[15,0,15,8],[16,0,24,8],[26,0,26,8],[27,0,35,8]]}
[{"$f":"+'Cover Page'!$B$29","v":"Annual Performance Report 2024"},null,null,null,{"$f":"+'Cover Page'!$B$33","v":"Tyseley Energy from Waste Plant"}]
[]
["Summary of Plant Improvements"]
[]
["Summary of any efficiency improvements that have been completed within the year."]
["n/a"]
[]
[]
[]
[]
[]
[]
[]
[]
[]
["Summary of any permit improvement conditions that have been completed within the year and the resulting environmental benefits."]
["n/a"]
[]
[]
[]
[]
[]
[]
[]
[]
[]
["Summary of any changes to the plant or operating techniques which required a variation to the permit and a summary of the resulting environmental impact."]
["Permit application has been submitted in order to add EWC 19 12 12 in the permitted list of waste types"]
[]
[]
[]
[]
[]
[]
[]
[]
[]
["Summary of any other improvements made to the plant or planned to be made and a summary of the resulting environmental benefits."]
["n/a"]

{"sheet":"Public Liasion","index":9,"n_rows":29,"n_cols":5,"rows_kept":29,"cut":false,"hidden":false,"merged":[[23,0,24,1],[23,2,24,8],[25,0,26,1],[25,2,26,8],[28,0,28,8],[17,0,18,1],[17,2,18,8],[19,0,20,1],[19,2,20,8],[21,0,22,1],[21,2,22,8],[16,0,16,1],[16,2,16,8],[5,0,5,1],[5,2,5,8],[6,0,7,1],[6,2,7,8],[8,0,9,1],[8,2,9,8],[10,0,11,1],[10,2,11,8],[12,0,13,1],[12,2,13,8],[15,0,15,8]]}
[{"$f":"+'Cover Page'!$B$29","v":"Annual Performance Report 2024"},null,null,null,{"$f":"+'Cover Page'!$B$33","v":"Tyseley Energy from Waste Plant"}]
[]
["Details of Public & Stakeholder Liaison"]
[]
["Summary of events held during the reporting year."]
["Date",null,"Description"]
["Bi-monthly",null,"Meetings with Birmingham City Council"]
[]
[]
[]
[]
[]
[]
[]
[]
["List of events planned for next year"]
["Date",null,"Description"]
["Bi-monthly",null,"Meetings with Birmingham City Council"]
[]
[]
[]
[]
[]
[]
[]
[]
[]
[]
["If you wish to be involved in the public liaison programme, please contact _https://www.birmingham.veolia.co.uk/contact#no-back_"]

{"sheet":"CO2 N2O","index":10,"n_rows":25,"n_cols":6,"rows_kept":25,"cut":false,"hidden":false,"merged":[[22,2,22,3],[25,1,25,3],[16,2,16,3],[4,0,4,3],[9,0,9,3],[17,0,17,3],[13,0,13,3],[12,0,12,1],[8,2,8,3],[11,2,11,3],[19,2,19,3]]}
[{"$f":"+'Cover Page'!$B$29","v":"Annual Performance Report 2024"},null,{"$f":"+'Cover Page'!$B$33","v":"Tyseley Energy from Waste Plant"}]
[]
["Carbon dioxide emissions and biogenic content of waste inputs",null,null,null,null,"Notes:"]
[]
["Carbon dioxide emissions (all types of plant)"]
[null,"Annual mass of carbon dioxide released","tonnes ",420255]
[null,"Annual mass of carbon dioxide released per tonne of waste burned","t CO2 / t waste ",{"$f":"D6/'Operational Data'!G21","v":1.1002966380152219}]
[null,"Annual mass of carbon dioxide released per MWh of energy exported","t CO2 / MWh export ",{"$f":"D6/'Operational Data'!G25","v":2.2927043496762156}]
[null,"Description of how annual carbon dioxide mass emission has been calculated. \nSee Note 1",null,null,null,"Note 1: All permits require operators to continuously monitor CO2 to EN14181 and flow to BS EN 16911-2 (unless otherwise agreed in writing). Operators must therefore use the results from these instruments to calculate their annual CO2 emissions. Where an operator does not have a flow meter calibrated to BS EN 16911-2, the averaged flow measurement from that year's periodic monitoring can be used instead. If the plant does not have calibrated CO2 CEMS, a suitably justified emissions factor can be used."]
["Nitrous oxide emissions (only plants which use ammonia or urea to abate NOx emissions)"]
[null,"Annual mass emissions of nitrous oxide","tonnes N2O",2.2000000000000002]
[null,"Description of how annual nitrous oxide mass emission has been calculated\nSee Note 2","CEM data",null,null,"Note 2: All permits require operators to continuously monitor N2O to EN14181 and flow to BS EN 16911-2, unless otherwise agreed in writing. Operators must therefore use the results from these instruments to calculate their annual N2O emissions. Where an operator does not have a flow meter calibrated to BS EN 16911-2, the averaged flow measurement from periodic monitoring can be used instead. If the plant does not have calibrated N2O CEMS, data from periodic monitoring or a suitably justified emissions factor can be used instead."]
["Total annual carbon dioxide + nitrous oxide emissions. \nSee Note 3. ",null,"tonnes CO2e",{"$f":"(D11*265)+D6","v":420838},null,"Note 3: Total annual carbon dioxide and nitrous oxide emissions reported as carbon dioxide equivalent where 1 tonne nitrous oxide is equivalent to 265 tonnes carbon dioxide."]
["Biogenic CO2 emissions (See Note 4)",null,null,null,null,"Note 4: Only plants combusting residual municipal waste, refuse derived fuel or solid recovered fuel need complete this section. "]
[null,"Percentage of total carbon dioxide emissions arising from biogenic waste","%"]
[null,"No. of measurements undertaken","Number"]
[null,"Description of how percentage biogenic carbon dioxide emissions have been measured or calculated.\nSee Note 5",null,null,null,"Note 5: The results from C14 sampling should be used if this is carried out at the plant (either via an installed sampler or from spot samples).  \nOtherwise, as an approximation (and in lieu of any more accurate metrics which may be developed in future), the measured or estimated biogenic fraction by net calorific value (see Note 6) can be assumed to be the same as the biogenic CO2 fraction of the total CO2 emissions from the plant. "]
["Biogenic fraction of waste feedstock (See Note 4)"]
[null,"Yearly average biogenic percentage of the waste by net calorific value (NCV)","%"]
[null,"Description of how biogenic percentage (by NCV) has been calculated or estimated. \nSee Note 6",null,null,null,"Note 6: If C14 sampling is carried out at the plant, the methodology set out in the embedded document entitled \"Renewable Energy Association Energy Content of Fuels - Description of Method\" embedded below can be used to calculate the biogenic percentage by net calorific value. Otherwise, data from waste sampling or BIOMA software can be used; or if none of these are available, an estimated figure with justification or a figure assumed on the basis of up-to-date industry data can be used. "]
[null,"Yearly average biogenic percentage of the waste by mass",0.51800000000000002,{"$f":"'Operational Data'!G21*0.518","v":197848.546}]
[null,"If waste sampling undertaken, no. of samples used to ascertain average biogenic percentages above","Number"]
[null,"Description of how biogenic percentage (by mass) has been calculated or estimated. \nSee Note 7","2017 WRAP data",null,null,"Note 7: Where available, data from waste sampling should be used; otherwise, an estimated figure with justification can be used, or a figure assumed on the basis of up-to-date industry data. "]
[]
[null,"Comments:"]

{"sheet":"Residue Quality ","index":11,"n_rows":36,"n_cols":6,"rows_kept":36,"cut":false,"hidden":false,"merged":[[36,0,41,6],[32,3,32,4],[35,0,35,6],[27,0,28,1],[29,0,29,1],[30,0,30,1],[31,0,31,1],[32,0,32,1],[29,3,29,4],[30,3,30,4],[29,5,29,6],[30,5,30,6],[31,5,31,6],[32,5,32,6],[33,0,33,6],[20,0,21,1],[20,2,21,6],[22,0,23,1],[22,2,23,6],[31,3,31,4],[27,2,28,2],[28,3,28,4],[28,5,28,6],[27,3,27,6],[26,0,26,6],[5,0,6,6],[7,0,8,6],[9,0,10,6],[14,0,15,1],[14,2,15,6],[16,0,17,1],[16,2,17,6],[18,0,19,1],[18,2,19,6],[12,0,12,6],[13,0,13,1],[13,2,13,6]]}
[{"$f":"+'Cover Page'!$B$29","v":"Annual Performance Report 2024"},null,null,null,{"$f":"+'Cover Page'!$B$33","v":"Tyseley Energy from Waste Plant"}]
[]
["Residue Quality Monitoring Requirements"]
[]
["Summary of monitoring undertaken and compliance"]
[]
[]
[]
[]
[]
[]
[]
["Commentary on any specific events"]
["Date & Event",null,"Description"]
[]
[]
[]
[]
[]
[]
[]
[]
[]
[]
[]
[]
["Residue Quality Monitoring Results"]
["Parameter (unit) ",null,"Limit*","Normal Operation "]
[null,null,null,"Bottom ash  ",null,"APC Residues"]
["Loss on Ignition (average %)",null,"<5%"]
["Total Organic Carbon (average %)",null,"<3%",1.7]
["No. of Assessments Undertaken",null,"---"]
["No. of Hazardous Results",null,"---"]
["* The permit will specify a limit of either 5% loss on ignition or 3% total organic carbon. If both are measured anyway, please enter the results here, even where the limit does not apply. "]
[]
["Comments :"]

{"sheet":"Water","index":12,"n_rows":41,"n_cols":9,"rows_kept":41,"cut":false,"hidden":false,"merged":[[39,0,39,2],[39,3,39,4],[40,0,40,2],[40,3,40,4],[36,0,36,2],[36,3,36,4],[37,0,37,2],[37,3,37,4],[38,0,38,2],[38,3,38,4],[33,0,33,2],[33,3,33,4],[34,0,34,2],[34,3,34,4],[35,0,35,2],[35,3,35,4],[30,0,30,2],[30,3,30,4],[31,0,31,2],[31,3,31,4],[32,0,32,2],[32,3,32,4],[29,0,29,2],[29,3,29,4],[26,0,26,2],[26,3,26,4],[27,0,27,2],[27,3,27,4],[28,0,28,2],[28,3,28,4],[23,0,23,2],[23,3,23,4],[24,0,24,2],[24,3,24,4],[25,0,25,2],[25,3,25,4],[21,0,21,8],[22,0,22,2],[22,3,22,4],[14,0,15,1],[14,2,15,8],[16,0,17,1],[16,2,17,8],[18,0,19,1],[18,2,19,8],[5,0,6,8],[7,0,8,8],[9,0,10,8],[12,0,12,8],[13,0,13,1],[13,2,13,8]]}
[{"$f":"+'Cover Page'!$B$29","v":"Annual Performance Report 2024"},null,null,null,{"$f":"+'Cover Page'!$B$33","v":"Tyseley Energy from Waste Plant"}]
[]
["Emissions to Water"]
[]
["Summary of monitoring undertaken and compliance"]
["As per Severn Trent Conditions of Consent to the discharge trade effluent to the public foul water sewer"]
[]
[]
[]
[]
[]
[]
["Commentary on any specific events"]
["Date & Event",null,"Description"]
[]
[]
[]
[]
[]
[]
[]
["Emissions to Water / Sewer"]
["Parameter",null,null,"Monitoring Frequency",null,"Limit","Target","Max.","Average"]
["Outlet 1"]
["SULPHATE",null,null,"Periodic",null,1500,null,819,632]
["CHRIOMIUM (Cr)",null,null,"Periodic",null,5,null,7.0699999999999999E-2,6.8849999999999995E-2]
["COPPER (Cu)",null,null,"Periodic",null,5,null,1.02,0.60650000000000004]
["LEAD (Pb)",null,null,"Periodic",null,5,null,0.63900000000000001,0.38350000000000001]
["NICKEL (Ni)",null,null,"Periodic",null,5,null,7.0000000000000007E-2,4.7E-2]
["ZINC (Zn)",null,null,"Periodic",null,10,null,0.72,0.58050000000000002]
["SULPHIDE as S",null,null,"Periodic",null,1,null,0.17100000000000001,0.15000000000000002]
["pH",null,null,"Periodic",null,12.5,null,12,11.95]
["Outlet 2 "]
["SULPHATE",null,null,"Periodic",null,1500]
["CHRIOMIUM (Cr)",null,null,"Periodic",null,5]
["COPPER (Cu)",null,null,"Periodic",null,5]
["LEAD (Pb)",null,null,"Periodic",null,5]
["NICKEL (Ni)",null,null,"Periodic",null,5]
["ZINC (Zn)",null,null,"Periodic",null,10]
["SULPHIDE as S",null,null,"Periodic",null,1]
["pH",null,null,"Periodic",null,12.5]

{"sheet":"Air (periodic)","index":13,"n_rows":42,"n_cols":12,"rows_kept":42,"cut":false,"hidden":false,"merged":[[22,0,22,1],[22,3,22,4],[23,0,23,1],[23,3,23,4],[9,9,9,10],[9,5,9,8],[21,3,21,4],[16,0,16,1],[17,0,17,1],[18,0,18,1],[13,0,13,1],[14,0,14,1],[15,0,15,1],[12,0,12,1],[11,3,11,4],[12,3,12,4],[13,11,14,13],[15,11,16,11],[15,12,16,12],[15,13,16,13],[18,3,18,4],[13,3,13,4],[14,3,14,4],[15,3,15,4],[16,3,16,4],[17,3,17,4],[24,3,24,4],[25,3,25,4],[26,3,26,4],[33,3,33,4],[27,3,27,4],[28,3,28,4],[30,3,30,4],[40,0,40,10],[19,0,19,1],[20,0,20,1],[21,0,21,1],[36,3,36,4],[37,3,37,4],[35,0,35,1],[36,0,36,1],[37,0,37,1],[38,0,38,1],[26,0,26,1],[34,3,34,4],[29,3,29,4],[35,3,35,4],[19,3,19,4],[20,3,20,4],[41,0,42,10],[27,0,27,1],[28,0,28,1],[24,0,24,1],[25,0,25,1],[39,0,39,1],[29,0,29,1],[30,0,30,1],[31,0,31,1],[32,0,32,1],[33,0,33,1],[34,0,34,1],[39,3,39,4],[31,3,31,4],[32,3,32,4],[38,3,38,4],[9,0,10,1],[9,3,10,4],[9,2,10,2],[5,11,8,14],[9,11,11,14],[8,0,8,10],[5,0,6,10],[11,0,11,1]]}
[{"$f":"+'Cover Page'!$B$29","v":"Annual Performance Report 2024"},null,null,null,{"$f":"+'Cover Page'!$B$33","v":"Tyseley Energy from Waste Plant"}]
[]
["Emissions to Air (periodically monitored)"]
[]
["Summary of monitoring undertaken, standards used and compliance",null,null,null,null,null,null,null,null,null,null,"Notes:"]
["As per permit requirements",null,null,null,null,null,null,null,null,null,null,"Template may require adjustment for any bespoke monitoring requirements of permit - please also check that all default ELV values, reference periods and the stated oxygen reference value match those for your plant, and edit if necessary!"]
[]
[]
["Results of emissions to air that are periodically monitored - oxygen reference 11% "]
["Substance",null,"Ref. Period","Emission Limit Value",null,null,null,null,null,"Average",null,"User to add additional tables as necessary, depending on whether quarterly or bi-annual reporting is required for the compliance year"]
[null,null,null,null,null,"A1(Q1&Q2)","A2(Q1&Q2)","A1(Q3&Q4)","A2(Q3&Q4)","A1","A2"]
["Hydrogen fluoride",null,"30min x 3","1 mg/m3",null,0.05,0.04,0.04,0.05,{"$f":"AVERAGE(F12,H12)","v":4.4999999999999998E-2},{"$f":"AVERAGE(G12,I12)","v":4.4999999999999998E-2}]
["Cd and Tl and their compounds",null,"30min x 3","0.02 mg/m3",null,0.02,1.6999999999999999E-3,1.9E-3,1.6999999999999999E-3,{"$f":"AVERAGE(F13,H13)","v":1.095E-2},{"$f":"AVERAGE(G13,I13)","v":1.6999999999999999E-3}]
["Hg and its compounds",null,"30min x 3","0.02 mg/m3",null,5.0000000000000001E-4,4.0000000000000002E-4,5.0000000000000001E-4,5.0000000000000001E-4,5.0000000000000001E-4,4.4999999999999999E-4]
["Sb, As, Pb, Cr, Co, Cu, Mn, Ni, V and their compounds",null,"30min x 3","0.3 mg/m3",null,5.7299999999999997E-2,2.9000000000000001E-2,2.3E-2,0.11269999999999999,4.0149999999999998E-2,7.0849999999999996E-2]
["Dioxins & Furans (I-TEQ)",null,"6-8hrs","0.06 ng/m3",null,2.3E-2,2.4E-2,2.1999999999999999E-2,1.6E-2,2.2499999999999999E-2,0.02]
["PCBs (WHO-TEQ Humans / Mammals)",null,"6-8hrs","None set ng/m3",null,2.5999999999999999E-3,3.0000000000000001E-3,1.6000000000000001E-3,6.9999999999999999E-4,2.0999999999999999E-3,1.8500000000000001E-3]
["PCBs (WHO-TEQ Fish)",null,"6-8hrs","None set ng/m3",null,1.4999999999999999E-4,1.7000000000000001E-4,7.2000000000000002E-5,3.1999999999999999E-5,1.1099999999999999E-4,1.01E-4]
["PCBs (WHO-TEQ Birds)",null,"6-8hrs","None set ng/m3",null,1.2E-2,1.0999999999999999E-2,2.7000000000000001E-3,1.8E-3,7.3500000000000006E-3,6.3999999999999994E-3]
["Dioxins & Furans (WHO-TEQ Humans / Mammals)",null,"6-8hrs","None set ng/m3",null,2.5999999999999999E-2,2.7E-2,2.4E-2,1.7000000000000001E-2,2.5000000000000001E-2,2.1999999999999999E-2]
["Dioxins & Furans (WHO-TEQ Fish)",null,"6-8hrs","None set ng/m3",null,2.4E-2,2.4E-2,2.4E-2,1.2E-2,2.4E-2,1.8000000000000002E-2]
["Dioxins & Furans (WHO-TEQ Birds)",null,"6-8hrs","None set ng/m3",null,3.5000000000000003E-2,3.5000000000000003E-2,3.1E-2,0.02,3.3000000000000002E-2,2.7500000000000004E-2]
["Brominated Dioxins & Furans (I-TEQ)",null,"6-8hrs","None set ng/m3",null,5.64E-3,5.5199999999999997E-3,2.6800000000000001E-3,2.0200000000000001E-3,4.1600000000000005E-3,3.7699999999999999E-3]
["Total PAH",null,"6-8hrs","None set µg/m3",null,0.53,0.2,null,null,0.53,0.2]
["Anthanthrene",null,"6-8hrs","None set µg/m3",null,2E-3,2E-3,null,null,2E-3,2E-3]
["Benzo(a)anthracene",null,"6-8hrs","None set µg/m3",null,2.2000000000000001E-3,2E-3,null,null,2.2000000000000001E-3,2E-3]
["Benzo(a)pyrene",null,"6-8hrs","None set µg/m3",null,2E-3,2E-3,null,null,2E-3,2E-3]
["Benzo(b)fluoranthene",null,"6-8hrs","None set µg/m3",null,3.5999999999999999E-3,2E-3,null,null,3.5999999999999999E-3,2E-3]
["Benzo(b)naptho(2,1-d) thiophene",null,"6-8hrs","None set µg/m3",null,2E-3,2E-3,null,null,2E-3,2E-3]
["Benzo(c)phenanthrene",null,"6-8hrs","None set µg/m3",null,2E-3,2E-3,null,null,2E-3,2E-3]
["Benzo(ghi)perylene",null,"6-8hrs","None set µg/m3",null,1.0999999999999999E-2,5.8999999999999999E-3,null,null,1.0999999999999999E-2,5.8999999999999999E-3]
["Benzo(k)fluoranthene",null,"6-8hrs","None set µg/m3",null,2E-3,0.02,null,null,2E-3,0.02]
["Cholanthrene",null,"6-8hrs","None set µg/m3",null,2E-3,0.02,null,null,2E-3,0.02]
["Chrysene",null,"6-8hrs","None set µg/m3",null,7.6E-3,2.5000000000000001E-3,null,null,7.6E-3,2.5000000000000001E-3]
["Cyclopenta(cd)pyrene",null,"6-8hrs","None set µg/m3",null,2E-3,2E-3,null,null,2E-3,2E-3]
["Dibenzo(ai)pyrene",null,"6-8hrs","None set µg/m3",null,2E-3,2E-3,null,null,2E-3,2E-3]
["Dibenzo(ah)anthracene",null,"6-8hrs","None set µg/m3",null,2E-3,2E-3,null,null,2E-3,2E-3]
["Fluoranthene",null,"6-8hrs","None set µg/m3",null,5.8999999999999997E-2,4.4999999999999998E-2,null,null,5.8999999999999997E-2,4.4999999999999998E-2]
["Indeno(123-cd) pyrene",null,"6-8hrs","None set µg/m3",null,2.8E-3,2E-3,null,null,2.8E-3,2E-3]
["Naphthalene",null,"6-8hrs","None set µg/m3",null,0.42,9.1999999999999998E-2,null,null,0.42,9.1999999999999998E-2]
["Comments :"]
["The PAH periodic emissions monitoring is an annual requirement and was completed during Q1/Q2 periodic\nemissions monitoring campaign. Brominated dioxins & furans periodic emissions results are added to the table above"]

{"sheet":"Air (CEMS)","index":14,"n_rows":30,"n_cols":14,"rows_kept":30,"cut":false,"hidden":false,"merged":[[29,0,30,12],[13,0,14,0],[5,0,6,12],[7,0,8,12],[10,0,10,12],[11,0,12,0],[11,2,12,2],[11,1,12,1],[11,3,11,4],[11,5,11,6],[11,7,11,8],[11,9,11,10],[11,11,11,12],[14,13,15,13],[14,14,15,14],[14,15,15,15],[12,13,13,15],[27,0,27,12]]}
[{"$f":"+'Cover Page'!$B$29","v":"Annual Performance Report 2024"},null,null,null,null,null,null,null,{"$f":"+'Cover Page'!$B$33","v":"Tyseley Energy from Waste Plant"}]
[]
["Emissions to Air (continuously monitored)"]
[null,null,null,null,null,null,null,null,null,null,null,null,null,"Notes:"]
["Summary of monitoring undertaken, standards used and compliance",null,null,null,null,null,null,null,null,null,null,null,null,"Template may require adjustment for any bespoke monitoring requirements of permit"]
["BS EN 14181 & MCertS CEM system",null,null,null,null,null,null,null,null,null,null,null,null,"Please check that all default ELV values match those for your plant and edit if necessary!"]
[null,null,null,null,null,null,null,null,null,null,null,null,null,"Report to 1 decimal place"]
[]
[]
[]
["Results of emissions to air that are continuously monitored (maximum and average values for each line) - oxygen reference 11%"]
["Substance","Reference Period","Emission Limit Value","A1",null,"A2",null,"A3",null,"A4",null,"A5"]
[null,null,null,"Max.","Avg.","Max.","Avg.","Max.","Avg.","Max.","Avg.","Max.","Avg."]
["Oxides of nitrogen","Daily mean","180 mg/m3 ",{"$f":"NOx!O19","v":173.9},{"$f":"NOx!N19","v":164.92499999999998},{"$f":"NOx!O34","v":174.7},{"$f":"NOx!N34","v":164.58333333333331}]
[null,"½ hourly mean","400 mg/m3 ",{"$f":"NOx!M19","v":286.39999999999998},{"$f":"NOx!L19","v":165.03333333333333},{"$f":"NOx!M34","v":278.5},{"$f":"NOx!L34","v":164.54999999999998}]
["Particulates","Daily mean","5 mg/m3",{"$f":"Particulates!O19","v":1.3},{"$f":"Particulates!N19","v":0.39999999999999991},{"$f":"Particulates!O34","v":2.2000000000000002},{"$f":"Particulates!N34","v":0.80833333333333346}]
[null,"½ hourly mean","30 mg/m3 ",{"$f":"Particulates!M19","v":21.8},{"$f":"Particulates!L19","v":0.44999999999999996},{"$f":"Particulates!M34","v":5.0999999999999996},{"$f":"Particulates!L34","v":0.84166666666666667}]
["Total Organic Carbon ","Daily mean","10 mg/m3 ",{"$f":"TOC!O19","v":3.2},{"$f":"TOC!N19","v":0.47500000000000003},{"$f":"TOC!O34","v":2.7},{"$f":"TOC!N34","v":1.6916666666666667}]
[null,"½ hourly mean","20 mg/m3 ",{"$f":"TOC!M19","v":20.3},{"$f":"TOC!L19","v":0.50833333333333319},{"$f":"TOC!M34","v":17.7},{"$f":"TOC!L34","v":1.7333333333333332}]
["Hydrogen chloride ","Daily mean","8 mg/m3 ",{"$f":"HCl!O19","v":7},{"$f":"HCl!N19","v":4.25},{"$f":"HCl!O34","v":7},{"$f":"HCl!N34","v":4.8916666666666666}]
[null,"½ hourly mean","60 mg/m3 ",{"$f":"HCl!M19","v":39.1},{"$f":"HCl!L19","v":4.2583333333333337},{"$f":"HCl!M34","v":51},{"$f":"HCl!L34","v":4.916666666666667}]
["Sulphur dioxide","Daily mean","40 mg/m3 ",{"$f":"'SO2'!O19","v":25.1},{"$f":"'SO2'!N19","v":8.2583333333333329},{"$f":"'SO2'!O34","v":22.9},{"$f":"'SO2'!N34","v":4.9499999999999993}]
[null,"½ hourly mean","200 mg/m3 ",{"$f":"'SO2'!M19","v":197.5},{"$f":"'SO2'!L19","v":8.3333333333333339},{"$f":"'SO2'!M34","v":165.2},{"$f":"'SO2'!L34","v":4.958333333333333}]
["Carbon monoxide ","Daily mean","50 mg/m3 ",{"$f":"'CO 95% 10 min'!Q22","v":25.7},{"$f":"'CO 95% 10 min'!P22","v":12.316666666666665},{"$f":"'CO 95% 10 min'!Q37","v":29.4},{"$f":"'CO 95% 10 min'!P37","v":11.174999999999999}]
[null,"½ hourly mean *","100 mg/m3 *"]
[null,"95%ile 10-min avg *","150 mg/m3 *",{"$f":"'CO 95% 10 min'!M22","v":91.408333333333317},{"$f":"'CO 95% 10 min'!N22","v":12.33333333333333},{"$f":"'CO 95% 10 min'!M37","v":61.80833333333333},{"$f":"'CO 95% 10 min'!N37","v":11.216666666666667}]
[" Ammonia","Daily mean","15 mg/m3 ",{"$f":"'NH3'!O19","v":12.3},{"$f":"'NH3'!N19","v":1.4500000000000002},{"$f":"'NH3'!O34","v":10.4},{"$f":"'NH3'!N34","v":1.5749999999999995}]
["* = delete as appropriate, depending on whether your plant has half-hourly or 10-min CO ELVs\n"]
["Comments :"]
["A half hour TOC exceedance occurred on A1 in August"]

{"sheet":"HCl","index":15,"n_rows":79,"n_cols":17,"rows_kept":79,"cut":false,"hidden":false,"merged":[[12,16,15,18],[51,9,63,9],[66,9,78,9],[4,9,4,14],[4,1,4,3],[4,4,4,6],[48,0,51,6],[47,0,47,6],[6,9,18,9],[21,9,33,9],[36,9,48,9],[3,16,7,18],[9,16,11,18],[18,4,18,6]]}
[{"$f":"+'Cover Page'!$B$29","v":"Annual Performance Report 2024"},null,null,null,{"$f":"+'Cover Page'!$B$33","v":"Tyseley Energy from Waste Plant"}]
[]
["Monitoring of Hydrogen Chloride emissions",null,null,"Whole Installation",null,null,"See  Notes in Cell Q3",null,null,{"$f":"+A3","v":"Monitoring of Hydrogen Chloride emissions"},null,null,null,"Per Combustion Line",null,null,"Notes:"]
[null,null,null,null,null,null,null,null,null,null,null,null,null,null,null,null,"User to add logic to complete Whole installation, Table A5:G18. From the data in Per Combustion Line, Table J6:O79, subject to No. of lines installed"]
[{"$f":"+'Cover Page'!C39","v":2024},"1/2 Hourly Reference Periods",null,null,"Daily Reference Periods"]
["mg/Nm3","1/2 hourly HCl ELV","Monthly mean of half-hourly averages","Highest half- hourly average","Daily HCl ELV","Monthly mean of  daily averages","Highest daily average",null,null,{"$f":"+A5","v":2024},"mg/Nm3","Monthly mean of half-hourly averages","Highest half- hourly average","Monthly mean of  daily averages","Highest daily average"]
["Jan",60,{"$f":"AVERAGE(L7,L22)","v":4.8499999999999996},{"$f":"MAX(M7,M22)","v":43.3},8,{"$f":"AVERAGE(N7,N22)","v":4.8499999999999996},{"$f":"MAX(O7,O22)","v":6.4},null,null,"A1","Jan",4.5,35.5,4.5,5.7]
["Feb",60,{"$f":"AVERAGE(L8,L23)","v":5.3000000000000007},{"$f":"MAX(M8,M23)","v":46.4},8,{"$f":"AVERAGE(N8,N23)","v":5.3000000000000007},{"$f":"MAX(O8,O23)","v":6.9},null,null,null,"Feb",5.2,38.700000000000003,5.2,6.9]
["Mar",60,5.45,51,8,5.45,7,null,null,null,"Mar",5.4,35,5.4,7,null,"Whole Installation table A5:G18:"]
["Apr",60,2.5499999999999998,39,8,2.4,4.5,null,null,null,"Apr",1.9,15.2,1.9,3.1,null,"Mean: for 1/2 hourly and daily periods calculate mean of values across all operational combustion lines for the month"]
["May",60,4.9000000000000004,38.4,8,4.8499999999999996,6.5,null,null,null,"May",4.7,38.4,4.7,5.9]
["Jun",60,4.0999999999999996,34.799999999999997,8,4.0999999999999996,6.4,null,null,null,"Jun",3.5,25.7,3.5,5]
["Jul",60,4.8000000000000007,28.6,8,4.8499999999999996,6.1,null,null,null,"Jul",4.7,28.6,4.7,6,null,"Maximum: for 1/2 hourly and daily periods use the highest value across all operational combustion lines for the month"]
["Aug",60,5.05,51,8,5,6.9,null,null,null,"Aug",4.5,22,4.4000000000000004,6.1]
["Sep",60,4.5,29.9,8,4.45,6.6,null,null,null,"Sep",4,16.3,3.9,5.7]
["Oct",60,4.1500000000000004,34.1,8,4.1500000000000004,6.5,null,null,null,"Oct",4,19.2,4,6.4]
["Nov",60,4.3499999999999996,40.799999999999997,8,4.4000000000000004,6.8,null,null,null,"Nov",4,39.1,4.0999999999999996,6.4]
["Dec",60,5.0500000000000007,47.9,8,5.0500000000000007,6.6,null,null,null,"Dec",4.7,30.8,4.7,5.6]
[null,null,null,null,null,null,null,null,null,null,"Annual",{"$f":"AVERAGE(L7:L18)","v":4.2583333333333337},{"$f":"MAX(M7:M18)","v":39.1},{"$f":"AVERAGE(N7:N18)","v":4.25},{"$f":"MAX(O7:O18)","v":7}]
[]
[null,null,null,null,null,null,null,null,null,{"$f":"+A5","v":2024},"mg/Nm3","Monthly mean of half-hourly averages","Highest half- hourly average","Monthly mean of  daily averages","Highest daily average"]
[null,null,null,null,null,null,null,null,null,"A2","Jan",5.2,43.3,5.2,6.4]
[null,null,null,null,null,null,null,null,null,null,"Feb",5.4,46.4,5.4,6.2]
[null,null,null,null,null,null,null,null,null,null,"Mar",5.5,51,5.5,7]
[null,null,null,null,null,null,null,null,null,null,"Apr",3.2,39,2.9,4.5]
[null,null,null,null,null,null,null,null,null,null,"May",5.0999999999999996,36.4,5,6.5]
[null,null,null,null,null,null,null,null,null,null,"Jun",4.7,34.799999999999997,4.7,6.4]
[null,null,null,null,null,null,null,null,null,null,"Jul",4.9000000000000004,25.7,5,6.1]
[null,null,null,null,null,null,null,null,null,null,"Aug",5.6,51,5.6,6.9]
[null,null,null,null,null,null,null,null,null,null,"Sep",5,29.9,5,6.6]
[null,null,null,null,null,null,null,null,null,null,"Oct",4.3,34.1,4.3,6.5]
[null,null,null,null,null,null,null,null,null,null,"Nov",4.7,40.799999999999997,4.7,6.8]
[null,null,null,null,null,null,null,null,null,null,"Dec",5.4,47.9,5.4,6.6]
[null,null,null,null,null,null,null,null,null,null,"Annual",{"$f":"AVERAGE(L22:L33)","v":4.916666666666667},{"$f":"MAX(M22:M33)","v":51},{"$f":"AVERAGE(N22:N33)","v":4.8916666666666666},{"$f":"MAX(O22:O33)","v":7}]
[]
[null,null,null,null,null,null,null,null,null,{"$f":"+A5","v":2024},"mg/Nm3","Monthly mean of half-hourly averages","Highest half- hourly average","Monthly mean of  daily averages","Highest daily average"]
[null,null,null,null,null,null,null,null,null,"A3","Jan"]
[null,null,null,null,null,null,null,null,null,null,"Feb"]
[null,null,null,null,null,null,null,null,null,null,"Mar"]
[null,null,null,null,null,null,null,null,null,null,"Apr"]
[null,null,null,null,null,null,null,null,null,null,"May"]
[null,null,null,null,null,null,null,null,null,null,"Jun"]
[null,null,null,null,null,null,null,null,null,null,"Jul"]
[null,null,null,null,null,null,null,null,null,null,"Aug"]
[null,null,null,null,null,null,null,null,null,null,"Sep"]
[null,null,null,null,null,null,null,null,null,null,"Oct"]
[null,null,null,null,null,null,null,null,null,null,"Nov"]
["Comments :",null,null,null,null,null,null,null,null,null,"Dec"]
[null,null,null,null,null,null,null,null,null,null,"Annual",{"$f":"AVERAGE(L37:L48)","v":{"$error":"#DIV/0!"}},{"$f":"MAX(M37:M48)","v":0},{"$f":"AVERAGE(N37:N48)","v":{"$error":"#DIV/0!"}},{"$f":"MAX(O37:O48)","v":0}]
[]
[null,null,null,null,null,null,null,null,null,{"$f":"+A5","v":2024},"mg/Nm3","Monthly mean of half-hourly averages","Highest half- hourly average","Monthly mean of  daily averages","Highest daily average"]
[null,null,null,null,null,null,null,null,null,"A4","Jan"]
[null,null,null,null,null,null,null,null,null,null,"Feb"]
[null,null,null,null,null,null,null,null,null,null,"Mar"]
[null,null,null,null,null,null,null,null,null,null,"Apr"]
[null,null,null,null,null,null,null,null,null,null,"May"]
[null,null,null,null,null,null,null,null,null,null,"Jun"]
[null,null,null,null,null,null,null,null,null,null,"Jul"]
[null,null,null,null,null,null,null,null,null,null,"Aug"]
[null,null,null,null,null,null,null,null,null,null,"Sep"]
[null,null,null,null,null,null,null,null,null,null,"Oct"]
[null,null,null,null,null,null,null,null,null,null,"Nov"]
[null,null,null,null,null,null,null,null,null,null,"Dec"]
[null,null,null,null,null,null,null,null,null,null,"Annual",{"$f":"AVERAGE(L52:L63)","v":{"$error":"#DIV/0!"}},{"$f":"MAX(M52:M63)","v":0},{"$f":"AVERAGE(N52:N63)","v":{"$error":"#DIV/0!"}},{"$f":"MAX(O52:O63)","v":0}]
[]
[null,null,null,null,null,null,null,null,null,{"$f":"+A5","v":2024},"mg/Nm3","Monthly mean of half-hourly averages","Highest half- hourly average","Monthly mean of  daily averages","Highest daily average"]
[null,null,null,null,null,null,null,null,null,"A5","Jan"]
[null,null,null,null,null,null,null,null,null,null,"Feb"]
[null,null,null,null,null,null,null,null,null,null,"Mar"]
[null,null,null,null,null,null,null,null,null,null,"Apr"]
[null,null,null,null,null,null,null,null,null,null,"May"]
[null,null,null,null,null,null,null,null,null,null,"Jun"]
[null,null,null,null,null,null,null,null,null,null,"Jul"]
[null,null,null,null,null,null,null,null,null,null,"Aug"]
[null,null,null,null,null,null,null,null,null,null,"Sep"]
[null,null,null,null,null,null,null,null,null,null,"Oct"]
[null,null,null,null,null,null,null,null,null,null,"Nov"]
[null,null,null,null,null,null,null,null,null,null,"Dec"]
[null,null,null,null,null,null,null,null,null,null,"Annual",{"$f":"AVERAGE(L67:L78)","v":{"$error":"#DIV/0!"}},{"$f":"MAX(M67:M78)","v":0},{"$f":"AVERAGE(N67:N78)","v":{"$error":"#DIV/0!"}},{"$f":"MAX(O67:O78)","v":0}]

{"sheet":"SO2","index":16,"n_rows":79,"n_cols":17,"rows_kept":79,"cut":false,"hidden":false,"merged":[[3,16,7,18],[9,16,11,18],[12,16,15,18],[66,9,78,9],[4,1,4,3],[4,4,4,6],[4,9,4,14],[6,9,18,9],[21,9,33,9],[36,9,48,9],[47,0,47,6],[48,0,51,6],[51,9,63,9],[18,4,18,6]]}
[{"$f":"+'Cover Page'!$B$29","v":"Annual Performance Report 2024"},null,null,null,{"$f":"+'Cover Page'!$B$33","v":"Tyseley Energy from Waste Plant"}]
[]
["Monitoring of Sulphur dioxide emissions",null,null,"Whole Installation",null,null,"See  Notes in Cell Q3",null,null,{"$f":"+A3","v":"Monitoring of Sulphur dioxide emissions"},null,null,null,"Per Combustion Line",null,null,"Notes:"]
[null,null,null,null,null,null,null,null,null,null,null,null,null,null,null,null,"User to add logic to complete Whole installation, Table A5:G18. From the data in Per Combustion Line, Table J6:O79, subject to No. of lines installed"]
[{"$f":"+'Cover Page'!C39","v":2024},"1/2 Hourly Reference Periods",null,null,"Daily Reference Periods"]
["mg/Nm3","1/2 hourly SO2 ELV","Monthly mean of half-hourly averages","Highest half- hourly average","Daily SO2 ELV","Monthly mean of  daily averages","Highest daily average",null,null,{"$f":"+A5","v":2024},"mg/Nm3","Monthly mean of half-hourly averages","Highest half- hourly average","Monthly mean of  daily averages","Highest daily average"]
["Jan",200,{"$f":"AVERAGE(L7,L22)","v":5.15},{"$f":"MAX(M7,M22)","v":125.4},40,{"$f":"AVERAGE(N7,N22)","v":5.15},{"$f":"MAX(O7,O22)","v":17.3},null,null,"A1","Jan",7.2,76.900000000000006,7.2,17.3]
["Feb",200,{"$f":"AVERAGE(L8,L23)","v":6.3000000000000007},{"$f":"MAX(M8,M23)","v":126.9},40,{"$f":"AVERAGE(N8,N23)","v":6.3000000000000007},{"$f":"MAX(O8,O23)","v":15.7},null,null,null,"Feb",9.4,126.9,9.4,15.7]
["Mar",200,7,152.6,40,6.95,12.8,null,null,null,"Mar",9.5,152.6,9.4,12.8,null,"Whole Installation table A5:G18:"]
["Apr",200,13.7,165.1,40,13.3,25.1,null,null,null,"Apr",15.3,165.1,14.6,25.1,null,"Mean: for 1/2 hourly and daily periods calculate mean of values across all operational combustion lines for the month"]
["May",200,7.35,107.9,40,7.4,15.5,null,null,null,"May",9,91.3,9,13.1]
["Jun",200,4.8,165.2,40,4.75,11.5,null,null,null,"Jun",6.6,77.8,6.5,11.5]
["Jul",200,5.9,128.6,40,5.9,17.3,null,null,null,"Jul",8.4,128.6,8.4,17.3,null,"Maximum: for 1/2 hourly and daily periods use the highest value across all operational combustion lines for the month"]
["Aug",200,5.55,197.5,40,5.55,13.8,null,null,null,"Aug",7.3,197.5,7.3,13.8]
["Sep",200,6.3000000000000007,103.9,40,6.3000000000000007,11.1,null,null,null,"Sep",6.7,103.9,6.7,11.1]
["Oct",200,6.1,128.19999999999999,40,6.1,13,null,null,null,"Oct",6.8,128.19999999999999,6.8,13]
["Nov",200,6.1999999999999993,113.7,40,6.15,11.7,null,null,null,"Nov",6.8,113.7,6.8,11.7]
["Dec",200,5.4,105.1,40,5.4,10.9,null,null,null,"Dec",7,87.1,7,10.9]
[null,null,null,null,null,null,null,null,null,null,"Annual",{"$f":"AVERAGE(L7:L18)","v":8.3333333333333339},{"$f":"MAX(M7:M18)","v":197.5},{"$f":"AVERAGE(N7:N18)","v":8.2583333333333329},{"$f":"MAX(O7:O18)","v":25.1}]
[]
[null,null,null,null,null,null,null,null,null,{"$f":"+A5","v":2024},"mg/Nm3","Monthly mean of half-hourly averages","Highest half- hourly average","Monthly mean of  daily averages","Highest daily average"]
[null,null,null,null,null,null,null,null,null,"A2","Jan",3.1,125.4,3.1,14.9]
[null,null,null,null,null,null,null,null,null,null,"Feb",3.2,69.3,3.2,6.9]
[null,null,null,null,null,null,null,null,null,null,"Mar",4.5,82.2,4.5,8.6]
[null,null,null,null,null,null,null,null,null,null,"Apr",12.1,143.1,12,22.9]
[null,null,null,null,null,null,null,null,null,null,"May",5.7,107.9,5.8,15.5]
[null,null,null,null,null,null,null,null,null,null,"Jun",3,165.2,3,8]
[null,null,null,null,null,null,null,null,null,null,"Jul",3.4,72.599999999999994,3.4,8.1]
[null,null,null,null,null,null,null,null,null,null,"Aug",3.8,110.1,3.8,7.3]
[null,null,null,null,null,null,null,null,null,null,"Sep",5.9,99.4,5.9,10.7]
[null,null,null,null,null,null,null,null,null,null,"Oct",5.4,103.4,5.4,10.4]
[null,null,null,null,null,null,null,null,null,null,"Nov",5.6,91.9,5.5,9.3000000000000007]
[null,null,null,null,null,null,null,null,null,null,"Dec",3.8,105.1,3.8,6.3]
[null,null,null,null,null,null,null,null,null,null,"Annual",{"$f":"AVERAGE(L22:L33)","v":4.958333333333333},{"$f":"MAX(M22:M33)","v":165.2},{"$f":"AVERAGE(N22:N33)","v":4.9499999999999993},{"$f":"MAX(O22:O33)","v":22.9}]
[]
[null,null,null,null,null,null,null,null,null,{"$f":"+A5","v":2024},"mg/Nm3","Monthly mean of half-hourly averages","Highest half- hourly average","Monthly mean of  daily averages","Highest daily average"]
[null,null,null,null,null,null,null,null,null,"A3","Jan"]
[null,null,null,null,null,null,null,null,null,null,"Feb"]
[null,null,null,null,null,null,null,null,null,null,"Mar"]
[null,null,null,null,null,null,null,null,null,null,"Apr"]
[null,null,null,null,null,null,null,null,null,null,"May"]
[null,null,null,null,null,null,null,null,null,null,"Jun"]
[null,null,null,null,null,null,null,null,null,null,"Jul"]
[null,null,null,null,null,null,null,null,null,null,"Aug"]
[null,null,null,null,null,null,null,null,null,null,"Sep"]
[null,null,null,null,null,null,null,null,null,null,"Oct"]
[null,null,null,null,null,null,null,null,null,null,"Nov"]
["Comments :",null,null,null,null,null,null,null,null,null,"Dec"]
[null,null,null,null,null,null,null,null,null,null,"Annual",{"$f":"AVERAGE(L37:L48)","v":{"$error":"#DIV/0!"}},{"$f":"MAX(M37:M48)","v":0},{"$f":"AVERAGE(N37:N48)","v":{"$error":"#DIV/0!"}},{"$f":"MAX(O37:O48)","v":0}]
[]
[null,null,null,null,null,null,null,null,null,{"$f":"+A5","v":2024},"mg/Nm3","Monthly mean of half-hourly averages","Highest half- hourly average","Monthly mean of  daily averages","Highest daily average"]
[null,null,null,null,null,null,null,null,null,"A4","Jan"]
[null,null,null,null,null,null,null,null,null,null,"Feb"]
[null,null,null,null,null,null,null,null,null,null,"Mar"]
[null,null,null,null,null,null,null,null,null,null,"Apr"]
[null,null,null,null,null,null,null,null,null,null,"May"]
[null,null,null,null,null,null,null,null,null,null,"Jun"]
[null,null,null,null,null,null,null,null,null,null,"Jul"]
[null,null,null,null,null,null,null,null,null,null,"Aug"]
[null,null,null,null,null,null,null,null,null,null,"Sep"]
[null,null,null,null,null,null,null,null,null,null,"Oct"]
[null,null,null,null,null,null,null,null,null,null,"Nov"]
[null,null,null,null,null,null,null,null,null,null,"Dec"]
[null,null,null,null,null,null,null,null,null,null,"Annual",{"$f":"AVERAGE(L52:L63)","v":{"$error":"#DIV/0!"}},{"$f":"MAX(M52:M63)","v":0},{"$f":"AVERAGE(N52:N63)","v":{"$error":"#DIV/0!"}},{"$f":"MAX(O52:O63)","v":0}]
[]
[null,null,null,null,null,null,null,null,null,{"$f":"+A5","v":2024},"mg/Nm3","Monthly mean of half-hourly averages","Highest half- hourly average","Monthly mean of  daily averages","Highest daily average"]
[null,null,null,null,null,null,null,null,null,"A5","Jan"]
[null,null,null,null,null,null,null,null,null,null,"Feb"]
[null,null,null,null,null,null,null,null,null,null,"Mar"]
[null,null,null,null,null,null,null,null,null,null,"Apr"]
[null,null,null,null,null,null,null,null,null,null,"May"]
[null,null,null,null,null,null,null,null,null,null,"Jun"]
[null,null,null,null,null,null,null,null,null,null,"Jul"]
[null,null,null,null,null,null,null,null,null,null,"Aug"]
[null,null,null,null,null,null,null,null,null,null,"Sep"]
[null,null,null,null,null,null,null,null,null,null,"Oct"]
[null,null,null,null,null,null,null,null,null,null,"Nov"]
[null,null,null,null,null,null,null,null,null,null,"Dec"]
[null,null,null,null,null,null,null,null,null,null,"Annual",{"$f":"AVERAGE(L67:L78)","v":{"$error":"#DIV/0!"}},{"$f":"MAX(M67:M78)","v":0},{"$f":"AVERAGE(N67:N78)","v":{"$error":"#DIV/0!"}},{"$f":"MAX(O67:O78)","v":0}]

{"sheet":"NOx","index":17,"n_rows":79,"n_cols":17,"rows_kept":79,"cut":false,"hidden":false,"merged":[[3,16,7,18],[9,16,11,18],[12,16,15,18],[66,9,78,9],[4,1,4,3],[4,4,4,6],[4,9,4,14],[6,9,18,9],[21,9,33,9],[36,9,48,9],[47,0,47,6],[48,0,51,6],[51,9,63,9],[18,4,18,6]]}
[{"$f":"+'Cover Page'!$B$29","v":"Annual Performance Report 2024"},null,null,null,{"$f":"+'Cover Page'!$B$33","v":"Tyseley Energy from Waste Plant"}]
[]
["Monitoring of Oxides of Nitrogen emissions",null,null,"Whole Installation",null,null,"See  Notes in Cell Q3",null,null,{"$f":"+A3","v":"Monitoring of Oxides of Nitrogen emissions"},null,null,null,"Per Combustion Line",null,null,"Notes:"]
[null,null,null,null,null,null,null,null,null,null,null,null,null,null,null,null,"User to add logic to complete Whole installation, Table A5:G18. From the data in Per Combustion Line, Table J6:O79, subject to No. of lines installed"]
[{"$f":"+'Cover Page'!C39","v":2024},"1/2 Hourly Reference Periods",null,null,"Daily Reference Periods"]
["mg/Nm3","1/2 hourly NOx ELV","Monthly mean of half-hourly averages","Highest half- hourly average","Daily NOx ELV","Monthly mean of  daily averages","Highest daily average",null,null,{"$f":"+A5","v":2024},"mg/Nm3","Monthly mean of half-hourly averages","Highest half- hourly average","Monthly mean of  daily averages","Highest daily average"]
["Jan",400,{"$f":"AVERAGE(L7,L22)","v":167.4},{"$f":"MAX(M7,M22)","v":226.4},180,{"$f":"AVERAGE(N7,N22)","v":167.35000000000002},{"$f":"MAX(O7,O22)","v":173},null,null,"A1","Jan",167.5,226.4,167.4,171.8]
["Feb",400,{"$f":"AVERAGE(L8,L23)","v":165.14999999999998},{"$f":"MAX(M8,M23)","v":221.2},180,{"$f":"AVERAGE(N8,N23)","v":165.1},{"$f":"MAX(O8,O23)","v":168.6},null,null,null,"Feb",164.7,199.6,164.6,166.4]
["Mar",400,165.25,278.5,180,165.2,170.4,null,null,null,"Mar",165,199.3,164.9,168.6,null,"Whole Installation table A5:G18:"]
["Apr",400,162.6,286.39999999999998,180,162.55000000000001,173.9,null,null,null,"Apr",166,286.39999999999998,165.4,173.9,null,"Mean: for 1/2 hourly and daily periods calculate mean of values across all operational combustion lines for the month"]
["May",400,165.10000000000002,214.4,180,165.05,170.3,null,null,null,"May",164.4,155.80000000000001,164.4,169.9]
["Jun",400,164.75,253.8,180,164.7,167.4,null,null,null,"Jun",164.8,214.2,164.7,167]
["Jul",400,164.05,204.1,180,164,169.6,null,null,null,"Jul",165,204.1,165,169.6,null,"Maximum: for 1/2 hourly and daily periods use the highest value across all operational combustion lines for the month"]
["Aug",400,163.75,203.7,180,163.69999999999999,166,null,null,null,"Aug",164.4,203.7,164.3,166]
["Sep",400,164.75,200.8,180,164.75,169.4,null,null,null,"Sep",164.6,198.7,164.5,166.5]
["Oct",400,165,210.7,180,164.95,174.7,null,null,null,"Oct",164.9,204.4,164.8,167]
["Nov",400,164.89999999999998,204.9,180,164.89999999999998,169,null,null,null,"Nov",164.6,200.9,164.6,165.2]
["Dec",400,164.8,199.4,180,164.8,166.2,null,null,null,"Dec",164.5,199.4,164.5,165.2]
[null,null,null,null,null,null,null,null,null,null,"Annual",{"$f":"AVERAGE(L7:L18)","v":165.03333333333333},{"$f":"MAX(M7:M18)","v":286.39999999999998},{"$f":"AVERAGE(N7:N18)","v":164.92499999999998},{"$f":"MAX(O7:O18)","v":173.9}]
[]
[null,null,null,null,null,null,null,null,null,{"$f":"+A5","v":2024},"mg/Nm3","Monthly mean of half-hourly averages","Highest half- hourly average","Monthly mean of  daily averages","Highest daily average"]
[null,null,null,null,null,null,null,null,null,"A2","Jan",167.3,222.2,167.3,173]
[null,null,null,null,null,null,null,null,null,null,"Feb",165.6,221.2,165.6,168.6]
[null,null,null,null,null,null,null,null,null,null,"Mar",165.5,278.5,165.5,170.4]
[null,null,null,null,null,null,null,null,null,null,"Apr",159.19999999999999,231.1,159.69999999999999,172.6]
[null,null,null,null,null,null,null,null,null,null,"May",165.8,214.4,165.7,170.3]
[null,null,null,null,null,null,null,null,null,null,"Jun",164.7,253.8,164.7,167.4]
[null,null,null,null,null,null,null,null,null,null,"Jul",163.1,193.3,163,166]
[null,null,null,null,null,null,null,null,null,null,"Aug",163.1,192.9,163.1,165.4]
[null,null,null,null,null,null,null,null,null,null,"Sep",164.9,200.8,165,169.4]
[null,null,null,null,null,null,null,null,null,null,"Oct",165.1,210.7,165.1,174.7]
[null,null,null,null,null,null,null,null,null,null,"Nov",165.2,204.9,165.2,169]
[null,null,null,null,null,null,null,null,null,null,"Dec",165.1,194.6,165.1,166.2]
[null,null,null,null,null,null,null,null,null,null,"Annual",{"$f":"AVERAGE(L22:L33)","v":164.54999999999998},{"$f":"MAX(M22:M33)","v":278.5},{"$f":"AVERAGE(N22:N33)","v":164.58333333333331},{"$f":"MAX(O22:O33)","v":174.7}]
[]
[null,null,null,null,null,null,null,null,null,{"$f":"+A5","v":2024},"mg/Nm3","Monthly mean of half-hourly averages","Highest half- hourly average","Monthly mean of  daily averages","Highest daily average"]
[null,null,null,null,null,null,null,null,null,"A3","Jan"]
[null,null,null,null,null,null,null,null,null,null,"Feb"]
[null,null,null,null,null,null,null,null,null,null,"Mar"]
[null,null,null,null,null,null,null,null,null,null,"Apr"]
[null,null,null,null,null,null,null,null,null,null,"May"]
[null,null,null,null,null,null,null,null,null,null,"Jun"]
[null,null,null,null,null,null,null,null,null,null,"Jul"]
[null,null,null,null,null,null,null,null,null,null,"Aug"]
[null,null,null,null,null,null,null,null,null,null,"Sep"]
[null,null,null,null,null,null,null,null,null,null,"Oct"]
[null,null,null,null,null,null,null,null,null,null,"Nov"]
["Comments :",null,null,null,null,null,null,null,null,null,"Dec"]
[null,null,null,null,null,null,null,null,null,null,"Annual",{"$f":"AVERAGE(L37:L48)","v":{"$error":"#DIV/0!"}},{"$f":"MAX(M37:M48)","v":0},{"$f":"AVERAGE(N37:N48)","v":{"$error":"#DIV/0!"}},{"$f":"MAX(O37:O48)","v":0}]
[]
[null,null,null,null,null,null,null,null,null,{"$f":"+A5","v":2024},"mg/Nm3","Monthly mean of half-hourly averages","Highest half- hourly average","Monthly mean of  daily averages","Highest daily average"]
[null,null,null,null,null,null,null,null,null,"A4","Jan"]
[null,null,null,null,null,null,null,null,null,null,"Feb"]
[null,null,null,null,null,null,null,null,null,null,"Mar"]
[null,null,null,null,null,null,null,null,null,null,"Apr"]
[null,null,null,null,null,null,null,null,null,null,"May"]
[null,null,null,null,null,null,null,null,null,null,"Jun"]
[null,null,null,null,null,null,null,null,null,null,"Jul"]
[null,null,null,null,null,null,null,null,null,null,"Aug"]
[null,null,null,null,null,null,null,null,null,null,"Sep"]
[null,null,null,null,null,null,null,null,null,null,"Oct"]
[null,null,null,null,null,null,null,null,null,null,"Nov"]
[null,null,null,null,null,null,null,null,null,null,"Dec"]
[null,null,null,null,null,null,null,null,null,null,"Annual",{"$f":"AVERAGE(L52:L63)","v":{"$error":"#DIV/0!"}},{"$f":"MAX(M52:M63)","v":0},{"$f":"AVERAGE(N52:N63)","v":{"$error":"#DIV/0!"}},{"$f":"MAX(O52:O63)","v":0}]
[]
[null,null,null,null,null,null,null,null,null,{"$f":"+A5","v":2024},"mg/Nm3","Monthly mean of half-hourly averages","Highest half- hourly average","Monthly mean of  daily averages","Highest daily average"]
[null,null,null,null,null,null,null,null,null,"A5","Jan"]
[null,null,null,null,null,null,null,null,null,null,"Feb"]
[null,null,null,null,null,null,null,null,null,null,"Mar"]
[null,null,null,null,null,null,null,null,null,null,"Apr"]
[null,null,null,null,null,null,null,null,null,null,"May"]
[null,null,null,null,null,null,null,null,null,null,"Jun"]
[null,null,null,null,null,null,null,null,null,null,"Jul"]
[null,null,null,null,null,null,null,null,null,null,"Aug"]
[null,null,null,null,null,null,null,null,null,null,"Sep"]
[null,null,null,null,null,null,null,null,null,null,"Oct"]
[null,null,null,null,null,null,null,null,null,null,"Nov"]
[null,null,null,null,null,null,null,null,null,null,"Dec"]
[null,null,null,null,null,null,null,null,null,null,"Annual",{"$f":"AVERAGE(L67:L78)","v":{"$error":"#DIV/0!"}},{"$f":"MAX(M67:M78)","v":0},{"$f":"AVERAGE(N67:N78)","v":{"$error":"#DIV/0!"}},{"$f":"MAX(O67:O78)","v":0}]

{"sheet":"TOC","index":18,"n_rows":79,"n_cols":17,"rows_kept":79,"cut":false,"hidden":false,"merged":[[3,16,7,18],[9,16,11,18],[12,16,15,18],[66,9,78,9],[4,1,4,3],[4,4,4,6],[4,9,4,14],[6,9,18,9],[21,9,33,9],[36,9,48,9],[47,0,47,6],[48,0,51,6],[51,9,63,9]]}
[{"$f":"+'Cover Page'!$B$29","v":"Annual Performance Report 2024"},null,null,null,{"$f":"+'Cover Page'!$B$33","v":"Tyseley Energy from Waste Plant"}]
[]
["Monitoring of Total organic carbon emissions",null,null,"Whole Installation",null,null,"See  Notes in Cell Q3",null,null,{"$f":"+A3","v":"Monitoring of Total organic carbon emissions"},null,null,null,"Per Combustion Line",null,null,"Notes:"]
[null,null,null,null,null,null,null,null,null,null,null,null,null,null,null,null,"User to add logic to complete Whole installation, Table A5:G18. From the data in Per Combustion Line, Table J6:O79, subject to No. of lines installed"]
[{"$f":"+'Cover Page'!C39","v":2024},"1/2 Hourly Reference Periods",null,null,"Daily Reference Periods"]
["mg/Nm3","1/2 hourly TOC ELV","Monthly mean of half-hourly averages","Highest half- hourly average","Daily TOC ELV","Monthly mean of  daily averages","Highest daily average",null,null,{"$f":"+A5","v":2024},"mg/Nm3","Monthly mean of half-hourly averages","Highest half- hourly average","Monthly mean of  daily averages","Highest daily average"]
["Jan",20,{"$f":"AVERAGE(L7,L22)","v":1.1000000000000001},{"$f":"MAX(M7,M22)","v":6.2},10,{"$f":"AVERAGE(N7,N22)","v":1.05},{"$f":"MAX(O7,O22)","v":2.1},null,null,"A1","Jan",0.4,5.5,0.4,1.4]
["Feb",20,{"$f":"AVERAGE(L8,L23)","v":1.05},{"$f":"MAX(M8,M23)","v":6},10,{"$f":"AVERAGE(N8,N23)","v":1.05},{"$f":"MAX(O8,O23)","v":2.5},null,null,null,"Feb",0.3,6,0.3,0.8]
["Mar",20,1.0999999999999999,17.7,10,1.05,2.2000000000000002,null,null,null,"Mar",0.3,5.4,0.2,0.5,null,"Whole Installation table A5:G18:"]
["Apr",20,1,7.2,10,0.95,2.2000000000000002,null,null,null,"Apr",0.5,7.2,0.5,1.7,null,"Mean: for 1/2 hourly and daily periods calculate mean of values across all operational combustion lines for the month"]
["May",20,0.9,13,10,0.9,3.2,null,null,null,"May",0.8,13,0.8,3.2]
["Jun",20,1.05,9.6,10,1,2.7,null,null,null,"Jun",0.3,5.9,0.3,0.9]
["Jul",20,1.2,11.3,10,1.1499999999999999,2.4,null,null,null,"Jul",0.5,11.3,0.5,1.4,null,"Maximum: for 1/2 hourly and daily periods use the highest value across all operational combustion lines for the month"]
["Aug",20,1,20.3,10,0.95,2,null,null,null,"Aug",0.3,20.3,0.2,1.2]
["Sep",20,1.4,10.7,10,1.4,2.2999999999999998,null,null,null,"Sep",0.9,10.7,0.9,2.2999999999999998]
["Oct",20,1.25,13.3,10,1.25,2.5,null,null,null,"Oct",0.6,4.7,0.6,1.1000000000000001]
["Nov",20,1.25,14.8,10,1.1499999999999999,2.1,null,null,null,"Nov",0.6,4.5,0.5,0.8]
["Dec",20,1.1499999999999999,8.5,10,1.1000000000000001,1.9,null,null,null,"Dec",0.6,6.8,0.5,1.3]
[null,null,null,null,null,null,null,null,null,null,"Annual",{"$f":"AVERAGE(L7:L18)","v":0.50833333333333319},{"$f":"MAX(M7:M18)","v":20.3},{"$f":"AVERAGE(N7:N18)","v":0.47500000000000003},{"$f":"MAX(O7:O18)","v":3.2}]
[]
[null,null,null,null,null,null,null,null,null,{"$f":"+A5","v":2024},"mg/Nm3","Monthly mean of half-hourly averages","Highest half- hourly average","Monthly mean of  daily averages","Highest daily average"]
[null,null,null,null,null,null,null,null,null,"A2","Jan",1.8,6.2,1.7,2.1]
[null,null,null,null,null,null,null,null,null,null,"Feb",1.8,5,1.8,2.5]
[null,null,null,null,null,null,null,null,null,null,"Mar",1.9,17.7,1.9,2.2000000000000002]
[null,null,null,null,null,null,null,null,null,null,"Apr",1.5,7.1,1.4,2.2000000000000002]
[null,null,null,null,null,null,null,null,null,null,"May",1,10.8,1,1.7]
[null,null,null,null,null,null,null,null,null,null,"Jun",1.8,9.6,1.7,2.7]
[null,null,null,null,null,null,null,null,null,null,"Jul",1.9,7.6,1.8,2.4]
[null,null,null,null,null,null,null,null,null,null,"Aug",1.7,8.4,1.7,2]
[null,null,null,null,null,null,null,null,null,null,"Sep",1.9,8.6,1.9,2.2000000000000002]
[null,null,null,null,null,null,null,null,null,null,"Oct",1.9,13.3,1.9,2.5]
[null,null,null,null,null,null,null,null,null,null,"Nov",1.9,14.8,1.8,2.1]
[null,null,null,null,null,null,null,null,null,null,"Dec",1.7,8.5,1.7,1.9]
[null,null,null,null,null,null,null,null,null,null,"Annual",{"$f":"AVERAGE(L22:L33)","v":1.7333333333333332},{"$f":"MAX(M22:M33)","v":17.7},{"$f":"AVERAGE(N22:N33)","v":1.6916666666666667},{"$f":"MAX(O22:O33)","v":2.7}]
[]
[null,null,null,null,null,null,null,null,null,{"$f":"+A5","v":2024},"mg/Nm3","Monthly mean of half-hourly averages","Highest half- hourly average","Monthly mean of  daily averages","Highest daily average"]
[null,null,null,null,null,null,null,null,null,"A3","Jan"]
[null,null,null,null,null,null,null,null,null,null,"Feb"]
[null,null,null,null,null,null,null,null,null,null,"Mar"]
[null,null,null,null,null,null,null,null,null,null,"Apr"]
[null,null,null,null,null,null,null,null,null,null,"May"]
[null,null,null,null,null,null,null,null,null,null,"Jun"]
[null,null,null,null,null,null,null,null,null,null,"Jul"]
[null,null,null,null,null,null,null,null,null,null,"Aug"]
[null,null,null,null,null,null,null,null,null,null,"Sep"]
[null,null,null,null,null,null,null,null,null,null,"Oct"]
[null,null,null,null,null,null,null,null,null,null,"Nov"]
["Comments :",null,null,null,null,null,null,null,null,null,"Dec"]
["A half hour exceedance occurred on A1 in August",null,null,null,null,null,null,null,null,null,"Annual",{"$f":"AVERAGE(L37:L48)","v":{"$error":"#DIV/0!"}},{"$f":"MAX(M37:M48)","v":0},{"$f":"AVERAGE(N37:N48)","v":{"$error":"#DIV/0!"}},{"$f":"MAX(O37:O48)","v":0}]
[]
[null,null,null,null,null,null,null,null,null,{"$f":"+A5","v":2024},"mg/Nm3","Monthly mean of half-hourly averages","Highest half- hourly average","Monthly mean of  daily averages","Highest daily average"]
[null,null,null,null,null,null,null,null,null,"A4","Jan"]
[null,null,null,null,null,null,null,null,null,null,"Feb"]
[null,null,null,null,null,null,null,null,null,null,"Mar"]
[null,null,null,null,null,null,null,null,null,null,"Apr"]
[null,null,null,null,null,null,null,null,null,null,"May"]
[null,null,null,null,null,null,null,null,null,null,"Jun"]
[null,null,null,null,null,null,null,null,null,null,"Jul"]
[null,null,null,null,null,null,null,null,null,null,"Aug"]
[null,null,null,null,null,null,null,null,null,null,"Sep"]
[null,null,null,null,null,null,null,null,null,null,"Oct"]
[null,null,null,null,null,null,null,null,null,null,"Nov"]
[null,null,null,null,null,null,null,null,null,null,"Dec"]
[null,null,null,null,null,null,null,null,null,null,"Annual",{"$f":"AVERAGE(L52:L63)","v":{"$error":"#DIV/0!"}},{"$f":"MAX(M52:M63)","v":0},{"$f":"AVERAGE(N52:N63)","v":{"$error":"#DIV/0!"}},{"$f":"MAX(O52:O63)","v":0}]
[]
[null,null,null,null,null,null,null,null,null,{"$f":"+A5","v":2024},"mg/Nm3","Monthly mean of half-hourly averages","Highest half- hourly average","Monthly mean of  daily averages","Highest daily average"]
[null,null,null,null,null,null,null,null,null,"A5","Jan"]
[null,null,null,null,null,null,null,null,null,null,"Feb"]
[null,null,null,null,null,null,null,null,null,null,"Mar"]
[null,null,null,null,null,null,null,null,null,null,"Apr"]
[null,null,null,null,null,null,null,null,null,null,"May"]
[null,null,null,null,null,null,null,null,null,null,"Jun"]
[null,null,null,null,null,null,null,null,null,null,"Jul"]
[null,null,null,null,null,null,null,null,null,null,"Aug"]
[null,null,null,null,null,null,null,null,null,null,"Sep"]
[null,null,null,null,null,null,null,null,null,null,"Oct"]
[null,null,null,null,null,null,null,null,null,null,"Nov"]
[null,null,null,null,null,null,null,null,null,null,"Dec"]
[null,null,null,null,null,null,null,null,null,null,"Annual",{"$f":"AVERAGE(L67:L78)","v":{"$error":"#DIV/0!"}},{"$f":"MAX(M67:M78)","v":0},{"$f":"AVERAGE(N67:N78)","v":{"$error":"#DIV/0!"}},{"$f":"MAX(O67:O78)","v":0}]

{"sheet":"Particulates","index":19,"n_rows":79,"n_cols":17,"rows_kept":79,"cut":false,"hidden":false,"merged":[[4,16,8,18],[10,16,12,18],[13,16,16,18],[66,9,78,9],[4,1,4,3],[4,4,4,6],[4,9,4,14],[6,9,18,9],[21,9,33,9],[36,9,48,9],[47,0,47,6],[48,0,51,6],[51,9,63,9],[18,4,18,6]]}
[{"$f":"+'Cover Page'!$B$29","v":"Annual Performance Report 2024"},null,null,null,{"$f":"+'Cover Page'!$B$33","v":"Tyseley Energy from Waste Plant"}]
[]
["Monitoring of Particulate matter emissions",null,null,"Whole Installation",null,null,"See  Notes in Cell Q3",null,null,{"$f":"+A3","v":"Monitoring of Particulate matter emissions"},null,null,null,"Per Combustion Line",null,null,"Notes:"]
[]
[{"$f":"+'Cover Page'!C39","v":2024},"1/2 Hourly Reference Periods",null,null,"Daily Reference Periods",null,null,null,null,null,null,null,null,null,null,null,"User to add logic to complete Whole installation, Table A5:G18. From the data in Per Combustion Line, Table J6:O79, subject to No. of lines installed"]
["mg/Nm3","1/2 hourly PM ELV","Monthly mean of half-hourly averages","Highest half- hourly average","Daily PM ELV","Monthly mean of  daily averages","Highest daily average",null,null,{"$f":"+A5","v":2024},"mg/Nm3","Monthly mean of half-hourly averages","Highest half- hourly average","Monthly mean of  daily averages","Highest daily average"]
["Jan",30,{"$f":"AVERAGE(L7,L22)","v":0.55000000000000004},{"$f":"MAX(M7,M22)","v":3.4},5,{"$f":"AVERAGE(N7,N22)","v":0.5},{"$f":"MAX(O7,O22)","v":0.8},null,null,"A1","Jan",0.4,1.1000000000000001,0.3,0.5]
["Feb",30,{"$f":"AVERAGE(L8,L23)","v":0.60000000000000009},{"$f":"MAX(M8,M23)","v":3.4},5,{"$f":"AVERAGE(N8,N23)","v":0.55000000000000004},{"$f":"MAX(O8,O23)","v":1},null,null,null,"Feb",0.4,3.4,0.3,0.5]
["Mar",30,0.7,1.9,5,0.65,1.4,null,null,null,"Mar",0.4,1.8,0.4,0.6]
["Apr",30,0.7,21.8,5,0.6,1.1000000000000001,null,null,null,"Apr",0.6,21.8,0.5,1.1000000000000001,null,"Whole Installation table A5:G18:"]
["May",30,0.55000000000000004,3.4,5,0.5,0.8,null,null,null,"May",0.5,3.1,0.4,0.8,null,"Mean: for 1/2 hourly and daily periods calculate mean of values across all operational combustion lines for the month"]
["Jun",30,0.6,5.0999999999999996,5,0.55000000000000004,0.8,null,null,null,"Jun",0.5,2.1,0.5,0.6]
["Jul",30,0.55000000000000004,8.9,5,0.55000000000000004,1,null,null,null,"Jul",0.4,8.9,0.4,1]
["Aug",30,0.55000000000000004,4.7,5,0.55000000000000004,1,null,null,null,"Aug",0.3,1.1000000000000001,0.3,0.5,null,"Maximum: for 1/2 hourly and daily periods use the highest value across all operational combustion lines for the month"]
["Sep",30,0.7,5.9,5,0.65,2.2000000000000002,null,null,null,"Sep",0.4,5.9,0.3,0.7]
["Oct",30,0.75,3.7,5,0.7,1.9,null,null,null,"Oct",0.4,1.2,0.4,0.6]
["Nov",30,0.8,3.5,5,0.75,1.5,null,null,null,"Nov",0.6,2.9,0.5,1.3]
["Dec",30,0.7,3.3,5,0.7,1.3,null,null,null,"Dec",0.5,3.3,0.5,0.7]
[null,null,null,null,null,null,null,null,null,null,"Annual",{"$f":"AVERAGE(L7:L18)","v":0.44999999999999996},{"$f":"MAX(M7:M18)","v":21.8},{"$f":"AVERAGE(N7:N18)","v":0.39999999999999991},{"$f":"MAX(O7:O18)","v":1.3}]
[]
[null,null,null,null,null,null,null,null,null,{"$f":"+A5","v":2024},"mg/Nm3","Monthly mean of half-hourly averages","Highest half- hourly average","Monthly mean of  daily averages","Highest daily average"]
[null,null,null,null,null,null,null,null,null,"A2","Jan",0.7,3.4,0.7,0.8]
[null,null,null,null,null,null,null,null,null,null,"Feb",0.8,1.6,0.8,1]
[null,null,null,null,null,null,null,null,null,null,"Mar",1,1.9,0.9,1.4]
[null,null,null,null,null,null,null,null,null,null,"Apr",0.8,1.6,0.7,0.8]
[null,null,null,null,null,null,null,null,null,null,"May",0.6,3.4,0.6,0.7]
[null,null,null,null,null,null,null,null,null,null,"Jun",0.7,5.0999999999999996,0.6,0.8]
[null,null,null,null,null,null,null,null,null,null,"Jul",0.7,3.3,0.7,0.9]
[null,null,null,null,null,null,null,null,null,null,"Aug",0.8,4.7,0.8,1]
[null,null,null,null,null,null,null,null,null,null,"Sep",1,5,1,2.2000000000000002]
[null,null,null,null,null,null,null,null,null,null,"Oct",1.1000000000000001,3.7,1,1.9]
[null,null,null,null,null,null,null,null,null,null,"Nov",1,3.5,1,1.5]
[null,null,null,null,null,null,null,null,null,null,"Dec",0.9,1.8,0.9,1.3]
[null,null,null,null,null,null,null,null,null,null,"Annual",{"$f":"AVERAGE(L22:L33)","v":0.84166666666666667},{"$f":"MAX(M22:M33)","v":5.0999999999999996},{"$f":"AVERAGE(N22:N33)","v":0.80833333333333346},{"$f":"MAX(O22:O33)","v":2.2000000000000002}]
[]
[null,null,null,null,null,null,null,null,null,{"$f":"+A5","v":2024},"mg/Nm3","Monthly mean of half-hourly averages","Highest half- hourly average","Monthly mean of  daily averages","Highest daily average"]
[null,null,null,null,null,null,null,null,null,"A3","Jan"]
[null,null,null,null,null,null,null,null,null,null,"Feb"]
[null,null,null,null,null,null,null,null,null,null,"Mar"]
[null,null,null,null,null,null,null,null,null,null,"Apr"]
[null,null,null,null,null,null,null,null,null,null,"May"]
[null,null,null,null,null,null,null,null,null,null,"Jun"]
[null,null,null,null,null,null,null,null,null,null,"Jul"]
[null,null,null,null,null,null,null,null,null,null,"Aug"]
[null,null,null,null,null,null,null,null,null,null,"Sep"]
[null,null,null,null,null,null,null,null,null,null,"Oct"]
[null,null,null,null,null,null,null,null,null,null,"Nov"]
["Comments :",null,null,null,null,null,null,null,null,null,"Dec"]
[null,null,null,null,null,null,null,null,null,null,"Annual",{"$f":"AVERAGE(L37:L48)","v":{"$error":"#DIV/0!"}},{"$f":"MAX(M37:M48)","v":0},{"$f":"AVERAGE(N37:N48)","v":{"$error":"#DIV/0!"}},{"$f":"MAX(O37:O48)","v":0}]
[]
[null,null,null,null,null,null,null,null,null,{"$f":"+A5","v":2024},"mg/Nm3","Monthly mean of half-hourly averages","Highest half- hourly average","Monthly mean of  daily averages","Highest daily average"]
[null,null,null,null,null,null,null,null,null,"A4","Jan"]
[null,null,null,null,null,null,null,null,null,null,"Feb"]
[null,null,null,null,null,null,null,null,null,null,"Mar"]
[null,null,null,null,null,null,null,null,null,null,"Apr"]
[null,null,null,null,null,null,null,null,null,null,"May"]
[null,null,null,null,null,null,null,null,null,null,"Jun"]
[null,null,null,null,null,null,null,null,null,null,"Jul"]
[null,null,null,null,null,null,null,null,null,null,"Aug"]
[null,null,null,null,null,null,null,null,null,null,"Sep"]
[null,null,null,null,null,null,null,null,null,null,"Oct"]
[null,null,null,null,null,null,null,null,null,null,"Nov"]
[null,null,null,null,null,null,null,null,null,null,"Dec"]
[null,null,null,null,null,null,null,null,null,null,"Annual",{"$f":"AVERAGE(L52:L63)","v":{"$error":"#DIV/0!"}},{"$f":"MAX(M52:M63)","v":0},{"$f":"AVERAGE(N52:N63)","v":{"$error":"#DIV/0!"}},{"$f":"MAX(O52:O63)","v":0}]
[]
[null,null,null,null,null,null,null,null,null,{"$f":"+A5","v":2024},"mg/Nm3","Monthly mean of half-hourly averages","Highest half- hourly average","Monthly mean of  daily averages","Highest daily average"]
[null,null,null,null,null,null,null,null,null,"A5","Jan"]
[null,null,null,null,null,null,null,null,null,null,"Feb"]
[null,null,null,null,null,null,null,null,null,null,"Mar"]
[null,null,null,null,null,null,null,null,null,null,"Apr"]
[null,null,null,null,null,null,null,null,null,null,"May"]
[null,null,null,null,null,null,null,null,null,null,"Jun"]
[null,null,null,null,null,null,null,null,null,null,"Jul"]
[null,null,null,null,null,null,null,null,null,null,"Aug"]
[null,null,null,null,null,null,null,null,null,null,"Sep"]
[null,null,null,null,null,null,null,null,null,null,"Oct"]
[null,null,null,null,null,null,null,null,null,null,"Nov"]
[null,null,null,null,null,null,null,null,null,null,"Dec"]
[null,null,null,null,null,null,null,null,null,null,"Annual",{"$f":"AVERAGE(L67:L78)","v":{"$error":"#DIV/0!"}},{"$f":"MAX(M67:M78)","v":0},{"$f":"AVERAGE(N67:N78)","v":{"$error":"#DIV/0!"}},{"$f":"MAX(O67:O78)","v":0}]

{"sheet":"CO 0.5 hourly","index":20,"n_rows":82,"n_cols":17,"rows_kept":82,"cut":false,"hidden":true,"merged":[[4,0,5,6],[6,16,10,18],[12,16,14,18],[15,16,18,18],[69,9,81,9],[7,1,7,3],[7,4,7,6],[7,9,7,14],[9,9,21,9],[24,9,36,9],[39,9,51,9],[50,0,50,6],[51,0,54,6],[54,9,66,9]]}
[{"$f":"+'Cover Page'!$B$29","v":"Annual Performance Report 2024"},null,null,null,{"$f":"+'Cover Page'!$B$33","v":"Tyseley Energy from Waste Plant"}]
[]
["Monitoring of Carbon Monoxide (half hourly)",null,null,"Whole Installation",null,null,"See  Notes in Cell Q3",null,null,{"$f":"+A3","v":"Monitoring of Carbon Monoxide (half hourly)"},null,null,null,"Per Combustion Line",null,null,"Notes:"]
[]
["Please complete this tab for your plant if you have 1/2 hourly CO ELVs; otherwise, leave it blank and complete the CO 95% 10 min tab"]
[]
[null,null,null,null,null,null,null,null,null,null,null,null,null,null,null,null,"User to add logic to complete Whole installation, Table A5:G18. From the data in Per Combustion Line, Table J6:O79, subject to No. of lines installed"]
[{"$f":"+'Cover Page'!C39","v":2024},"1/2 Hourly Reference Periods",null,null,"Daily Reference Periods"]
["mg/Nm3","1/2 hourly CO ELV","Monthly mean of half-hourly averages","Highest half- hourly average","Daily CO ELV","Monthly mean of  daily averages","Highest daily average",null,null,{"$f":"+A8","v":2024},"mg/Nm3","Monthly mean of half-hourly averages","Highest half- hourly average","Monthly mean of  daily averages","Highest daily average"]
["Jan",100,null,null,50,null,null,null,null,"A1","Jan"]
["Feb",{"$f":"+B10","v":100},null,null,{"$f":"+E10","v":50},null,null,null,null,null,"Feb"]
["Mar",{"$f":"+B11","v":100},null,null,{"$f":"+E11","v":50},null,null,null,null,null,"Mar",null,null,null,null,null,"Whole Installation table A5:G18:"]
["Apr",100,null,null,50,null,null,null,null,null,"Apr",null,null,null,null,null,"Mean: for 1/2 hourly and daily periods calculate mean of values across all operational combustion lines for the month"]
["May",100,null,null,50,null,null,null,null,null,"May"]
["Jun",100,null,null,50,null,null,null,null,null,"Jun"]
["Jul",100,null,null,50,null,null,null,null,null,"Jul",null,null,null,null,null,"Maximum: for 1/2 hourly and daily periods use the highest value across all operational combustion lines for the month"]
["Aug",100,null,null,50,null,null,null,null,null,"Aug"]
["Sep",100,null,null,50,null,null,null,null,null,"Sep"]
["Oct",100,null,null,50,null,null,null,null,null,"Oct"]
["Nov",100,null,null,50,null,null,null,null,null,"Nov"]
["Dec",100,null,null,50,null,null,null,null,null,"Dec"]
[null,null,null,null,null,null,null,null,null,null,"Annual",{"$f":"AVERAGE(L10:L21)","v":{"$error":"#DIV/0!"}},{"$f":"MAX(M10:M21)","v":0},{"$f":"AVERAGE(N10:N21)","v":{"$error":"#DIV/0!"}},{"$f":"MAX(O10:O21)","v":0}]
[]
[null,null,null,null,null,null,null,null,null,{"$f":"+A8","v":2024},"mg/Nm3","Monthly mean of half-hourly averages","Highest half- hourly average","Monthly mean of  daily averages","Highest daily average"]
[null,null,null,null,null,null,null,null,null,"A2","Jan"]
[null,null,null,null,null,null,null,null,null,null,"Feb"]
[null,null,null,null,null,null,null,null,null,null,"Mar"]
[null,null,null,null,null,null,null,null,null,null,"Apr"]
[null,null,null,null,null,null,null,null,null,null,"May"]
[null,null,null,null,null,null,null,null,null,null,"Jun"]
[null,null,null,null,null,null,null,null,null,null,"Jul"]
[null,null,null,null,null,null,null,null,null,null,"Aug"]
[null,null,null,null,null,null,null,null,null,null,"Sep"]
[null,null,null,null,null,null,null,null,null,null,"Oct"]
[null,null,null,null,null,null,null,null,null,null,"Nov"]
[null,null,null,null,null,null,null,null,null,null,"Dec"]
[null,null,null,null,null,null,null,null,null,null,"Annual",{"$f":"AVERAGE(L25:L36)","v":{"$error":"#DIV/0!"}},{"$f":"MAX(M25:M36)","v":0},{"$f":"AVERAGE(N25:N36)","v":{"$error":"#DIV/0!"}},{"$f":"MAX(O25:O36)","v":0}]
[]
[null,null,null,null,null,null,null,null,null,{"$f":"+A8","v":2024},"mg/Nm3","Monthly mean of half-hourly averages","Highest half- hourly average","Monthly mean of  daily averages","Highest daily average"]
[null,null,null,null,null,null,null,null,null,"A3","Jan"]
[null,null,null,null,null,null,null,null,null,null,"Feb"]
[null,null,null,null,null,null,null,null,null,null,"Mar"]
[null,null,null,null,null,null,null,null,null,null,"Apr"]
[null,null,null,null,null,null,null,null,null,null,"May"]
[null,null,null,null,null,null,null,null,null,null,"Jun"]
[null,null,null,null,null,null,null,null,null,null,"Jul"]
[null,null,null,null,null,null,null,null,null,null,"Aug"]
[null,null,null,null,null,null,null,null,null,null,"Sep"]
[null,null,null,null,null,null,null,null,null,null,"Oct"]
[null,null,null,null,null,null,null,null,null,null,"Nov"]
["Comments :",null,null,null,null,null,null,null,null,null,"Dec"]
[null,null,null,null,null,null,null,null,null,null,"Annual",{"$f":"AVERAGE(L40:L51)","v":{"$error":"#DIV/0!"}},{"$f":"MAX(M40:M51)","v":0},{"$f":"AVERAGE(N40:N51)","v":{"$error":"#DIV/0!"}},{"$f":"MAX(O40:O51)","v":0}]
[]
[null,null,null,null,null,null,null,null,null,{"$f":"+A8","v":2024},"mg/Nm3","Monthly mean of half-hourly averages","Highest half- hourly average","Monthly mean of  daily averages","Highest daily average"]
[null,null,null,null,null,null,null,null,null,"A4","Jan"]
[null,null,null,null,null,null,null,null,null,null,"Feb"]
[null,null,null,null,null,null,null,null,null,null,"Mar"]
[null,null,null,null,null,null,null,null,null,null,"Apr"]
[null,null,null,null,null,null,null,null,null,null,"May"]
[null,null,null,null,null,null,null,null,null,null,"Jun"]
[null,null,null,null,null,null,null,null,null,null,"Jul"]
[null,null,null,null,null,null,null,null,null,null,"Aug"]
[null,null,null,null,null,null,null,null,null,null,"Sep"]
[null,null,null,null,null,null,null,null,null,null,"Oct"]
[null,null,null,null,null,null,null,null,null,null,"Nov"]
[null,null,null,null,null,null,null,null,null,null,"Dec"]
[null,null,null,null,null,null,null,null,null,null,"Annual",{"$f":"AVERAGE(L55:L66)","v":{"$error":"#DIV/0!"}},{"$f":"MAX(M55:M66)","v":0},{"$f":"AVERAGE(N55:N66)","v":{"$error":"#DIV/0!"}},{"$f":"MAX(O55:O66)","v":0}]
[]
[null,null,null,null,null,null,null,null,null,{"$f":"+A8","v":2024},"mg/Nm3","Monthly mean of half-hourly averages","Highest half- hourly average","Monthly mean of  daily averages","Highest daily average"]
[null,null,null,null,null,null,null,null,null,"A5","Jan"]
[null,null,null,null,null,null,null,null,null,null,"Feb"]
[null,null,null,null,null,null,null,null,null,null,"Mar"]
[null,null,null,null,null,null,null,null,null,null,"Apr"]
[null,null,null,null,null,null,null,null,null,null,"May"]
[null,null,null,null,null,null,null,null,null,null,"Jun"]
[null,null,null,null,null,null,null,null,null,null,"Jul"]
[null,null,null,null,null,null,null,null,null,null,"Aug"]
[null,null,null,null,null,null,null,null,null,null,"Sep"]
[null,null,null,null,null,null,null,null,null,null,"Oct"]
[null,null,null,null,null,null,null,null,null,null,"Nov"]
[null,null,null,null,null,null,null,null,null,null,"Dec"]
[null,null,null,null,null,null,null,null,null,null,"Annual",{"$f":"AVERAGE(L70:L81)","v":{"$error":"#DIV/0!"}},{"$f":"MAX(M70:M81)","v":0},{"$f":"AVERAGE(N70:N81)","v":{"$error":"#DIV/0!"}},{"$f":"MAX(O70:O81)","v":0}]

{"sheet":"CO 95% 10 min","index":21,"n_rows":82,"n_cols":19,"rows_kept":82,"cut":false,"hidden":false,"merged":[[4,0,5,7],[6,18,10,20],[12,18,14,20],[15,18,18,20],[69,10,81,10],[7,1,7,4],[7,5,7,7],[7,10,7,16],[9,10,21,10],[24,10,36,10],[39,10,51,10],[50,0,50,7],[51,0,54,7],[54,10,66,10]]}
[{"$f":"+'Cover Page'!$B$29","v":"Annual Performance Report 2024"},null,null,null,{"$f":"+'Cover Page'!$B$33","v":"Tyseley Energy from Waste Plant"}]
[]
["Monitoring of Carbon Monoxide (10-minute avg)",null,null,null,"Whole Installation",null,null,"See  Notes in Cell S3",null,{"$f":"+A3","v":"Monitoring of Carbon Monoxide (10-minute avg)"},null,null,null,null,"Per Combustion Line",null,"Notes:",null,"Notes:"]
[]
["Please complete this tab for your plant if you have 10-minute average CO ELVs; otherwise, leave it blank and complete the CO 0.5 hourly tab"]
[]
[null,null,null,null,null,null,null,null,null,null,null,null,null,null,null,null,null,null,"User to add logic to complete Whole installation, Table A5:H18. From the data in Per Combustion Line, Table K6:Q79, subject to No. of lines installed"]
[{"$f":"+'Cover Page'!C39","v":2024},"10-minute Reference Periods",null,null,null,"Daily Reference Periods"]
["mg/Nm3","95%ile 10-min avg CO ELV","Highest daily 95%ile 10-min average","Monthly mean of 10-min averages","Highest 10-min average","Daily CO ELV","Monthly mean of  daily averages","Highest daily average",null,null,{"$f":"+A8","v":2024},"mg/Nm3","Highest daily 95%ile 10-min average","Monthly mean of 10-min averages","Highest 10-min average","Monthly mean of  daily averages","Highest daily average"]
["Jan",150,{"$f":"MAX(M10,M25)","v":105.8},{"$f":"AVERAGE(N10,N25)","v":10.35},{"$f":"MAX(O10,O25)","v":437.1},50,{"$f":"AVERAGE(P10,P25)","v":10.3},{"$f":"MAX(Q10,Q25)","v":20.7},null,null,"A1","Jan",105.8,11.7,329.9,11.6,20.7]
["Feb",{"$f":"+B10","v":150},{"$f":"MAX(M11,M26)","v":89.7},{"$f":"AVERAGE(N11,N26)","v":13.3},{"$f":"MAX(O11,O26)","v":615.20000000000005},{"$f":"+F10","v":50},{"$f":"AVERAGE(P11,P26)","v":13.3},{"$f":"MAX(Q11,Q26)","v":24},null,null,null,"Feb",89.7,12.5,272.5,12.5,22.5]
["Mar",{"$f":"+B11","v":150},69.400000000000006,13.35,558.6,{"$f":"+F11","v":50},13.100000000000001,19.899999999999999,null,null,null,"Mar",69.400000000000006,13.2,285.8,12.9,16,null,"Whole Installation table A5:H18:"]
["Apr",150,81.599999999999994,13.55,412.3,50,13.45,21.7,null,null,null,"Apr",81.599999999999994,13.4,412.3,13.4,21.7,null,"Mean: for 10-min and daily periods use average of all operational combustion lines."]
["May",150,115,12.5,610.6,50,12.45,21.3,null,null,null,"May",115,15.7,437.5,15.7,21.3]
["Jun",150,93.3,12.05,1152.4000000000001,50,12.2,29.4,null,null,null,"Jun",93.3,10.1,325.8,10.1,19.899999999999999]
["Jul",150,127,11.2,626,50,11.2,23.5,null,null,null,"Jul",127,11.8,436,11.8,23.5,null,"Maximum: for 10-min and daily periods use the highest of all operational combustion lines in any month."]
["Aug",150,106.2,10.7,406.3,50,10.649999999999999,25.7,null,null,null,"Aug",106.2,12.6,387.1,12.6,25.7]
["Sep",150,83.3,11,791.9,50,11.05,21.6,null,null,null,"Sep",83.3,11.8,370.5,11.8,21.6]
["Oct",150,59.5,10.65,859.6,50,10.65,17.899999999999999,null,null,null,"Oct",59.5,9.3000000000000007,155,9.3000000000000007,16.100000000000001]
["Nov",150,80.400000000000006,12.350000000000001,682.6,50,12.3,20.399999999999999,null,null,null,"Nov",80.400000000000006,13.4,379.3,13.6,20.399999999999999]
["Dec",150,85.7,10.3,421.2,50,10.3,21.6,null,null,null,"Dec",85.7,12.5,254.8,12.5,21.6]
[null,null,null,null,null,null,null,null,null,null,null,"Annual",{"$f":"AVERAGE(M10:M21)","v":91.408333333333317},{"$f":"AVERAGE(N10:N21)","v":12.33333333333333},{"$f":"MAX(O10:O21)","v":437.5},{"$f":"AVERAGE(P10:P21)","v":12.316666666666665},{"$f":"MAX(Q10:Q21)","v":25.7}]
[]
[null,null,null,null,null,null,null,null,null,null,{"$f":"+A8","v":2024},"mg/Nm3","Highest daily 95%ile 10-min average","Monthly mean of 10-min averages","Highest 10-min average","Monthly mean of  daily averages","Highest daily average"]
[null,null,null,null,null,null,null,null,null,null,"A2","Jan",54.9,9,437.1,9,16.7]
[null,null,null,null,null,null,null,null,null,null,null,"Feb",88.2,14.1,615.20000000000005,14.1,24]
[null,null,null,null,null,null,null,null,null,null,null,"Mar",60,13.5,558.6,13.3,19.899999999999999]
[null,null,null,null,null,null,null,null,null,null,null,"Apr",56.1,13.7,146.30000000000001,13.5,21.4]
[null,null,null,null,null,null,null,null,null,null,null,"May",63.8,9.3000000000000007,610.6,9.1999999999999993,18.399999999999999]
[null,null,null,null,null,null,null,null,null,null,null,"Jun",85.4,14,1152.4000000000001,14.3,29.4]
[null,null,null,null,null,null,null,null,null,null,null,"Jul",98.7,10.6,626,10.6,23.2]
[null,null,null,null,null,null,null,null,null,null,null,"Aug",65,8.8000000000000007,406.3,8.6999999999999993,17.3]
[null,null,null,null,null,null,null,null,null,null,null,"Sep",44.4,10.199999999999999,791.9,10.3,16.100000000000001]
[null,null,null,null,null,null,null,null,null,null,null,"Oct",47.4,12,859.6,12,17.899999999999999]
[null,null,null,null,null,null,null,null,null,null,null,"Nov",53.7,11.3,682.6,11,17.2]
[null,null,null,null,null,null,null,null,null,null,null,"Dec",24.1,8.1,421.2,8.1,11.6]
[null,null,null,null,null,null,null,null,null,null,null,"Annual",{"$f":"AVERAGE(M25:M36)","v":61.80833333333333},{"$f":"AVERAGE(N25:N36)","v":11.216666666666667},{"$f":"MAX(O25:O36)","v":1152.4000000000001},{"$f":"AVERAGE(P25:P36)","v":11.174999999999999},{"$f":"MAX(Q25:Q36)","v":29.4}]
[]
[null,null,null,null,null,null,null,null,null,null,{"$f":"+A8","v":2024},"mg/Nm3","Highest daily 95%ile 10-min average","Monthly mean of 10-min averages","Highest 10-min average","Monthly mean of  daily averages","Highest daily average"]
[null,null,null,null,null,null,null,null,null,null,"A3","Jan"]
[null,null,null,null,null,null,null,null,null,null,null,"Feb"]
[null,null,null,null,null,null,null,null,null,null,null,"Mar"]
[null,null,null,null,null,null,null,null,null,null,null,"Apr"]
[null,null,null,null,null,null,null,null,null,null,null,"May"]
[null,null,null,null,null,null,null,null,null,null,null,"Jun"]
[null,null,null,null,null,null,null,null,null,null,null,"Jul"]
[null,null,null,null,null,null,null,null,null,null,null,"Aug"]
[null,null,null,null,null,null,null,null,null,null,null,"Sep"]
[null,null,null,null,null,null,null,null,null,null,null,"Oct"]
[null,null,null,null,null,null,null,null,null,null,null,"Nov"]
["Comments :",null,null,null,null,null,null,null,null,null,null,"Dec"]
["Environment Agency explanatory note: The 10-minute average ELV is based on the “95th percentile”. In this case this means that 95% of the 10 minute averages in the relevant 24-hour period (i.e. 137) must be below 150 mg/Nm3, and 5% (i.e. 7) are allowed to be any value above 150 mg/Nm3. Whilst we expect operators to minimise CO emissions at all times, it is perfectly acceptable for the value of the maximum 10-minute average to be above 150 mg/Nm3, provided the 95th percentile ELV has been met for that period. ",null,null,null,null,null,null,null,null,null,null,"Annual",{"$f":"AVERAGE(M40:M51)","v":{"$error":"#DIV/0!"}},null,{"$f":"MAX(O40:O51)","v":0},{"$f":"AVERAGE(P40:P51)","v":{"$error":"#DIV/0!"}},{"$f":"MAX(Q40:Q51)","v":0}]
[]
[null,null,null,null,null,null,null,null,null,null,{"$f":"+A8","v":2024},"mg/Nm3","Highest daily 95%ile 10-min average","Monthly mean of 10-min averages","Highest 10-min average","Monthly mean of  daily averages","Highest daily average"]
[null,null,null,null,null,null,null,null,null,null,"A4","Jan"]
[null,null,null,null,null,null,null,null,null,null,null,"Feb"]
[null,null,null,null,null,null,null,null,null,null,null,"Mar"]
[null,null,null,null,null,null,null,null,null,null,null,"Apr"]
[null,null,null,null,null,null,null,null,null,null,null,"May"]
[null,null,null,null,null,null,null,null,null,null,null,"Jun"]
[null,null,null,null,null,null,null,null,null,null,null,"Jul"]
[null,null,null,null,null,null,null,null,null,null,null,"Aug"]
[null,null,null,null,null,null,null,null,null,null,null,"Sep"]
[null,null,null,null,null,null,null,null,null,null,null,"Oct"]
[null,null,null,null,null,null,null,null,null,null,null,"Nov"]
[null,null,null,null,null,null,null,null,null,null,null,"Dec"]
[null,null,null,null,null,null,null,null,null,null,null,"Annual",{"$f":"AVERAGE(M55:M66)","v":{"$error":"#DIV/0!"}},null,{"$f":"MAX(O55:O66)","v":0},{"$f":"AVERAGE(P55:P66)","v":{"$error":"#DIV/0!"}},{"$f":"MAX(Q55:Q66)","v":0}]
[]
[null,null,null,null,null,null,null,null,null,null,{"$f":"+A8","v":2024},"mg/Nm3","95%ile 10-min avg maximum","Monthly CO 10-min avg mean","10-min avg maximum","Monthly daily mean","Monthly daily maximum"]
[null,null,null,null,null,null,null,null,null,null,"A5","Jan"]
[null,null,null,null,null,null,null,null,null,null,null,"Feb"]
[null,null,null,null,null,null,null,null,null,null,null,"Mar"]
[null,null,null,null,null,null,null,null,null,null,null,"Apr"]
[null,null,null,null,null,null,null,null,null,null,null,"May"]
[null,null,null,null,null,null,null,null,null,null,null,"Jun"]
[null,null,null,null,null,null,null,null,null,null,null,"Jul"]
[null,null,null,null,null,null,null,null,null,null,null,"Aug"]
[null,null,null,null,null,null,null,null,null,null,null,"Sep"]
[null,null,null,null,null,null,null,null,null,null,null,"Oct"]
[null,null,null,null,null,null,null,null,null,null,null,"Nov"]
[null,null,null,null,null,null,null,null,null,null,null,"Dec"]
[null,null,null,null,null,null,null,null,null,null,null,"Annual",{"$f":"AVERAGE(M70:M81)","v":{"$error":"#DIV/0!"}},null,{"$f":"MAX(O70:O81)","v":0},{"$f":"AVERAGE(P70:P81)","v":{"$error":"#DIV/0!"}},{"$f":"MAX(Q70:Q81)","v":0}]

{"sheet":"NH3","index":22,"n_rows":79,"n_cols":17,"rows_kept":79,"cut":false,"hidden":false,"merged":[[3,16,7,18],[9,16,11,18],[12,16,15,18],[66,9,78,9],[4,1,4,3],[4,4,4,6],[4,9,4,14],[6,9,18,9],[21,9,33,9],[36,9,48,9],[47,0,47,6],[48,0,51,6],[51,9,63,9],[18,4,18,6]]}
[{"$f":"+'Cover Page'!$B$29","v":"Annual Performance Report 2024"},null,null,null,{"$f":"+'Cover Page'!$B$33","v":"Tyseley Energy from Waste Plant"}]
[]
["Monitoring of Ammnonia emissions ",null,null,"Whole Installation",null,null,"See  Notes in Cell Q3",null,null,{"$f":"+A3","v":"Monitoring of Ammnonia emissions "},null,null,null,"Per Combustion Line",null,null,"Notes:"]
[null,null,null,null,null,null,null,null,null,null,null,null,null,null,null,null,"User to add logic to complete Whole installation, Table A5:G18. From the data in Per Combustion Line, Table J6:O79, subject to No. of lines installed"]
[{"$f":"+'Cover Page'!C39","v":2024},"1/2 Hourly Reference Periods",null,null,"Daily Reference Periods"]
["mg/Nm3","1/2 hourly NH3 ELV","Monthly mean of half-hourly averages","Highest half- hourly average","Daily NH3 ELV","Monthly mean of  daily averages","Highest daily average",null,null,{"$f":"+A5","v":2024},"mg/Nm3","Monthly mean of half-hourly averages","Highest half- hourly average","Monthly mean of  daily averages","Highest daily average"]
["Jan","None",{"$f":"AVERAGE(L7,L22)","v":1},{"$f":"MAX(M7,M22)","v":13.1},15,{"$f":"AVERAGE(N7,N22)","v":0.95},{"$f":"MAX(O7,O22)","v":2.2999999999999998},null,null,"A1","Jan",1,13.1,0.9,2.2999999999999998]
["Feb",{"$f":"+B7","v":"None"},{"$f":"AVERAGE(L8,L23)","v":1.1499999999999999},{"$f":"MAX(M8,M23)","v":9.9},15,{"$f":"AVERAGE(N8,N23)","v":1.1000000000000001},{"$f":"MAX(O8,O23)","v":2.2999999999999998},null,null,null,"Feb",1.1000000000000001,9.9,1,2.2999999999999998]
["Mar",{"$f":"+B8","v":"None"},1.85,13.6,15,1.7,3.4,null,null,null,"Mar",1.6,11.5,1.4,2.4,null,"Whole Installation table A5:G18:"]
["Apr","None",4.1500000000000004,33.799999999999997,15,3.85,12.3,null,null,null,"Apr",5.2,33.799999999999997,4.7,12.3,null,"Mean: for 1/2 hourly and daily periods calculate mean of values across all operational combustion lines for the month"]
["May","None",1.85,16.5,15,1.7,4.3,null,null,null,"May",1.5,11,1.4,2.5]
["Jun","None",1.4500000000000002,13.1,15,1.4,2.2000000000000002,null,null,null,"Jun",1.3,7.5,1.3,2.1]
["Jul","None",1.3,9.5,15,1.25,2.2999999999999998,null,null,null,"Jul",1.3,9.5,1.3,2.2999999999999998,null,"Maximum: for 1/2 hourly and daily periods use the highest value across all operational combustion lines for the month"]
["Aug","None",1,15.2,15,1,2,null,null,null,"Aug",0.9,15.2,0.9,2]
["Sep","None",1.5,15.9,15,1.45,3.4,null,null,null,"Sep",1.4,9.3000000000000007,1.4,3.4]
["Oct","None",1.4500000000000002,13.1,15,1.4500000000000002,3.1,null,null,null,"Oct",1.1000000000000001,11.1,1.1000000000000001,2.9]
["Nov","None",1.55,25.8,15,1.45,3.6,null,null,null,"Nov",1.3,25.8,1.2,1.9]
["Dec","None",0.85000000000000009,6.7,15,0.85000000000000009,1.7,null,null,null,"Dec",0.8,6.7,0.8,1.3]
[null,null,null,null,null,null,null,null,null,null,"Annual",{"$f":"AVERAGE(L7:L18)","v":1.541666666666667},{"$f":"MAX(M7:M18)","v":33.799999999999997},{"$f":"AVERAGE(N7:N18)","v":1.4500000000000002},{"$f":"MAX(O7:O18)","v":12.3}]
[]
[null,null,null,null,null,null,null,null,null,{"$f":"+A5","v":2024},"mg/Nm3","Monthly mean of half-hourly averages","Highest half- hourly average","Monthly mean of  daily averages","Highest daily average"]
[null,null,null,null,null,null,null,null,null,"A2","Jan",1,6.9,1,2]
[null,null,null,null,null,null,null,null,null,null,"Feb",1.2,9.3000000000000007,1.2,2.2999999999999998]
[null,null,null,null,null,null,null,null,null,null,"Mar",2.1,13.6,2,3.4]
[null,null,null,null,null,null,null,null,null,null,"Apr",3.1,20.3,3,10.4]
[null,null,null,null,null,null,null,null,null,null,"May",2.2000000000000002,16.5,2,4.3]
[null,null,null,null,null,null,null,null,null,null,"Jun",1.6,13.1,1.5,2.2000000000000002]
[null,null,null,null,null,null,null,null,null,null,"Jul",1.3,5.3,1.2,2.2000000000000002]
[null,null,null,null,null,null,null,null,null,null,"Aug",1.1000000000000001,7,1.1000000000000001,1.6]
[null,null,null,null,null,null,null,null,null,null,"Sep",1.6,15.9,1.5,3.1]
[null,null,null,null,null,null,null,null,null,null,"Oct",1.8,13.1,1.8,3.1]
[null,null,null,null,null,null,null,null,null,null,"Nov",1.8,12.4,1.7,3.6]
[null,null,null,null,null,null,null,null,null,null,"Dec",0.9,5.8,0.9,1.7]
[null,null,null,null,null,null,null,null,null,null,"Annual",{"$f":"AVERAGE(L22:L33)","v":1.6416666666666666},{"$f":"MAX(M22:M33)","v":20.3},{"$f":"AVERAGE(N22:N33)","v":1.5749999999999995},{"$f":"MAX(O22:O33)","v":10.4}]
[]
[null,null,null,null,null,null,null,null,null,{"$f":"+A5","v":2024},"mg/Nm3","Monthly mean of half-hourly averages","Highest half- hourly average","Monthly mean of  daily averages","Highest daily average"]
[null,null,null,null,null,null,null,null,null,"A3","Jan"]
[null,null,null,null,null,null,null,null,null,null,"Feb"]
[null,null,null,null,null,null,null,null,null,null,"Mar"]
[null,null,null,null,null,null,null,null,null,null,"Apr"]
[null,null,null,null,null,null,null,null,null,null,"May"]
[null,null,null,null,null,null,null,null,null,null,"Jun"]
[null,null,null,null,null,null,null,null,null,null,"Jul"]
[null,null,null,null,null,null,null,null,null,null,"Aug"]
[null,null,null,null,null,null,null,null,null,null,"Sep"]
[null,null,null,null,null,null,null,null,null,null,"Oct"]
[null,null,null,null,null,null,null,null,null,null,"Nov"]
["Comments :",null,null,null,null,null,null,null,null,null,"Dec"]
["An indicated ELV value of zero in the table above means that no ammonia limit is/was set in the permit.  ",null,null,null,null,null,null,null,null,null,"Annual",{"$f":"AVERAGE(L37:L48)","v":{"$error":"#DIV/0!"}},{"$f":"MAX(M37:M48)","v":0},{"$f":"AVERAGE(N37:N48)","v":{"$error":"#DIV/0!"}},{"$f":"MAX(O37:O48)","v":0}]
[]
[null,null,null,null,null,null,null,null,null,{"$f":"+A5","v":2024},"mg/Nm3","Monthly mean of half-hourly averages","Highest half- hourly average","Monthly mean of  daily averages","Highest daily average"]
[null,null,null,null,null,null,null,null,null,"A4","Jan"]
[null,null,null,null,null,null,null,null,null,null,"Feb"]
[null,null,null,null,null,null,null,null,null,null,"Mar"]
[null,null,null,null,null,null,null,null,null,null,"Apr"]
[null,null,null,null,null,null,null,null,null,null,"May"]
[null,null,null,null,null,null,null,null,null,null,"Jun"]
[null,null,null,null,null,null,null,null,null,null,"Jul"]
[null,null,null,null,null,null,null,null,null,null,"Aug"]
[null,null,null,null,null,null,null,null,null,null,"Sep"]
[null,null,null,null,null,null,null,null,null,null,"Oct"]
[null,null,null,null,null,null,null,null,null,null,"Nov"]
[null,null,null,null,null,null,null,null,null,null,"Dec"]
[null,null,null,null,null,null,null,null,null,null,"Annual",{"$f":"AVERAGE(L52:L63)","v":{"$error":"#DIV/0!"}},{"$f":"MAX(M52:M63)","v":0},{"$f":"AVERAGE(N52:N63)","v":{"$error":"#DIV/0!"}},{"$f":"MAX(O52:O63)","v":0}]
[]
[null,null,null,null,null,null,null,null,null,{"$f":"+A5","v":2024},"mg/Nm3","Monthly mean of half-hourly averages","Highest half- hourly average","Monthly mean of  daily averages","Highest daily average"]
[null,null,null,null,null,null,null,null,null,"A5","Jan"]
[null,null,null,null,null,null,null,null,null,null,"Feb"]
[null,null,null,null,null,null,null,null,null,null,"Mar"]
[null,null,null,null,null,null,null,null,null,null,"Apr"]
[null,null,null,null,null,null,null,null,null,null,"May"]
[null,null,null,null,null,null,null,null,null,null,"Jun"]
[null,null,null,null,null,null,null,null,null,null,"Jul"]
[null,null,null,null,null,null,null,null,null,null,"Aug"]
[null,null,null,null,null,null,null,null,null,null,"Sep"]
[null,null,null,null,null,null,null,null,null,null,"Oct"]
[null,null,null,null,null,null,null,null,null,null,"Nov"]
[null,null,null,null,null,null,null,null,null,null,"Dec"]
[null,null,null,null,null,null,null,null,null,null,"Annual",{"$f":"AVERAGE(L67:L78)","v":{"$error":"#DIV/0!"}},{"$f":"MAX(M67:M78)","v":0},{"$f":"AVERAGE(N67:N78)","v":{"$error":"#DIV/0!"}},{"$f":"MAX(O67:O78)","v":0}]

{"sheet":"Template changes log","index":23,"n_rows":18,"n_cols":3,"rows_kept":18,"cut":false,"hidden":false,"merged":[]}
["Log of changes to template (Environment Agency use only)"]
[]
["Date","Description of change","New version number and date"]
["2024-01-16","Air (periodic) tab: corrected default O2 reference from 6 to 11% ","Version 23.5a (for incinerators) - 16/01/2024"]
["2024-09-23","Air (periodic) tab: corrected symbol for Thallium to Tl"]
["2024-09-23","Air (periodic) tab: removed last year's references to different emission limit values applying from 03/12/23 and updated all relevant ELVs"]
["2024-09-23","Tabs for continuously monitored pollutants (HCl, SO2 etc.): changed terminology in table headings to improve clarity"]
["2024-09-23","Tabs for continuously monitored pollutants (HCl, SO2 etc.): removed last year's references to different emission limit values applying from 03/12/23 and updated all relevant ELVs"]
["2024-09-23","Perf 1 tab: updated formula for water usage to report m3 rather than litres and corrected error with formula copying operator name"]
["2024-09-23","Operational Summary tab: table added on start-ups and shut-downs"]
["2024-09-23","Operational Summary tab: table added on dioxins and mercury protocols"]
["2024-09-23","Operational Summary tab: table added on AST, QAL 2 and calibration functions"]
["2024-09-23","CO2 N2O tab: various changes made to notes to reflect the fact that most plants should now have calibrated CEMS and flow meters + some have C14 samplers and more up to date industry data","Version 24a (for incinerators) - 23/09/24"]
["2024-11-08","CO2 N2O tab: Changed the N2O CO2 equivalence factor from 298 to 265 in line with recently updated government greenhouse gas figures: https://www.gov.uk/government/publications/greenhouse-gas-reporting-conversion-factors-2024"]
["2024-11-08","CO2 N2O tab: Added an additional requirement for municipal EfW plants to state the yearly average biogenic percentage of the waste by mass, and reference to a document which sets out a methodology for calculating NCV of waste from the results of C14 sampling."]
["2024-11-08","Permit Compliance tab: Two additional columns added + explanatory notes to the table entitled \"Summary of non-compliances under the permit\" to allow CCS scores to be stated where relevant. "]
["2024-11-08","Residue Quality tab: Note added explaining application of TOC and LOI limits and asking operators to report both metrics where measured. ","Version 24.1a (for incinerators) - 08/11/24"]
["2024-11-27","Operational Summary tab: Tables on mercury & dioxins protocols and ASTs removed (covered instead by new tables added to updated Air 9 periodic monitoring form)","Version 24.2a (for incinerators) - 27/11/24"]